{"text_format":"1","workbook":"xlsx","n_sheets":9,"sheets":["MATRIZ DE INDICADORES","AAA-1","AAA-2","AAA-5","AAA-9","AAA-11 Inacti","AAA-12 Inacti","ACTUALIZACIONES","ITEM"],"not_rendered":{"charts":6,"images":4,"macros":1,"external_links":0,"defined_names":19,"comments":2,"pivot_tables":0},"unopened":[],"bounds":{"document_bytes":16777216,"sheet_cells":100000,"rows_first":2000,"rows_last":500,"rows_between":2000,"halvings":0,"cell_chars":16384,"cell_head_chars":4096},"cells_cut":0,"cells_raw":0,"read":"whole","date_system":"1900"}

{"sheet":"MATRIZ DE INDICADORES","index":0,"n_rows":71,"n_cols":21,"rows_kept":71,"cut":false,"hidden":false,"merged":[[28,11,32,11],[28,10,32,10],[28,9,32,9],[12,6,44,6],[37,11,44,11],[37,10,44,10],[28,8,32,8],[37,9,44,9],[37,8,44,8],[33,11,36,11],[33,10,36,10],[33,9,36,9],[33,8,36,8],[33,7,36,7],[1,18,1,20],[1,1,4,2],[1,3,1,17],[2,3,2,17],[3,3,4,17],[55,1,55,20],[56,1,56,20],[2,18,2,20],[3,18,3,20],[4,18,4,20],[9,1,10,20],[6,16,7,17],[12,18,19,18],[12,19,19,19],[12,20,19,20],[12,11,19,11],[12,10,19,10],[12,9,19,9],[12,8,19,8],[33,18,36,18],[33,19,36,19],[20,18,27,18],[20,19,27,19],[20,20,27,20],[20,7,27,7],[20,8,27,8],[20,9,27,9],[20,10,27,10],[20,11,27,11],[12,17,50,17],[45,18,50,18],[45,19,50,19],[45,20,50,20],[45,11,50,11],[45,10,50,10],[45,9,50,9],[45,8,50,8],[33,20,36,20],[28,18,32,18],[28,19,32,19],[28,20,32,20],[37,18,44,18],[37,19,44,19],[37,20,44,20],[45,7,50,7],[12,1,50,1],[12,2,50,2],[37,3,50,3],[37,4,50,4],[12,5,50,5],[45,6,50,6],[12,3,36,3],[28,7,32,7],[12,7,19,7],[37,7,44,7],[12,4,36,4]]}
[]
[null,null,null,"MACROPROCESO ESTRATÉGICO",null,null,null,null,null,null,null,null,null,null,null,null,null,null,"CÓDIGO: ESGr027"]
[null,null,null,"PROCESO GESTIÓN SISTEMAS INTEGRADOS - CALIDAD",null,null,null,null,null,null,null,null,null,null,null,null,null,null,"VERSIÓN: 8"]
[null,null,null,"MATRIZ DE MEDICIÓN Y SEGUIMIENTO A LOS PROCESOS DE GESTIÓN",null,null,null,null,null,null,null,null,null,null,null,null,null,null,"VIGENCIA: 2023-07-28"]
[null,null,null,null,null,null,null,null,null,null,null,null,null,null,null,null,null,null,"PÁGINA: 1 de 8"]
[]
[null,null,null,null,null,null,null,null,null,null,null,null,null,null,null,null,"FECHA DE ACTUALIZACIÓN:",null,"AÑO","MES","DÍA"]
[null,null,null,null,null,null,null,null,null,null,null,null,null,null,null,null,null,null,2024,2,19]
[]
[null,"ALINEACIÓN DE LOS INDICADORES CON LOS DOCUMENTOS ESTRATÉGICOS Y LOS OBJETIVOS DE CALIDAD"]
[]
[null,"PROCESO GESTIÓN","FRENTES DEL PLAN ESTRATÉGICO","LINEAMIENTOS DE LA POLÍTICA DE CALIDAD","OBJETIVOS DE CALIDAD","OBJETIVO GENERAL DEL PROCESO","OBJETIVOS ESPECÍFICOS","NOMBRE INDICADOR","FÓRMULA","TIPO DE INDICADOR","SEGUIMIENTO MEDICIÓN","META","ACTIVIDAD","RESPONSABLE DE LA ACTIVIDAD","¿QUÉ RECURSOS SE REQUIEREN?","FECHA EJECUCIÓN DE ACTIVIDADES","EVIDENCIA","¿CUÁNDO FINALIZARÁ?","RESULTADO ","NIVEL OBTENIDO","ACCESO"]
[null,"Apoyo Académico","Frente Estratégico I: Campo Multidimensional de Aprendizaje (CMA)","La satisfacción de las necesidades y expectativas de la comunidad universitaria a través de la  adopción del campo multidimensional de aprendizaje","2. Lograr la acreditación de programas y la acreditación institucional de acuerdo a la planificación de las metas  institucionales resultantes de los ejercicios de autoevaluación y acreditación","Asegurar la prestación de espacios académicos, elementos educativos y la ejecución de los recursos asignados a la Unidad de Apoyo Académico, con el fin de contribuir al desarrollo de los procesos de la academia.","Asegurar la disponibilidad y suficiencia de la totalidad de los recursos asignados a la Unidad de Apoyo Académico que permita llevar el seguimiento a la usabilidad, para el desarrollo de las actividades de la academia durante los dos periodos académicos del 2024.","Disponibilidad de Softwares Académicos","Número de licencias que mantienen en continuidad en el periodo académico * 100/Número total de licencias adquiridas","Acreditación","Semestral",1,"Planificar el cronograma para la apertura del aplicativo entorno a la adquisición de los Software académicos de acuerdo a la necesidad de la academia","Jefatura de Apoyo Académico","Recurso Humano\nOffice 365","2023-12-01","Cronograma",2024,{"$f":"'AAA-1'!D46","v":1},null,"AAA-1"]
[null,null,null,null,null,null,null,null,null,null,null,null,"Aperturar en el aplicativo la relación de las fechas de recepción de solicitudes de Software académico","Jefatura de Apoyo Académico","Recurso Humano\nOffice 365","1 al 24 de mayo 2024","Solicitudes realizadas en el aplicativo"]
[null,null,null,null,null,null,null,null,null,null,null,null,"Validar las solicitudes realizadas en el aplicativo","Jefatura de Apoyo Académico","Recurso Humano\nOffice 365","2024-06-01","Solicitudes realizadas en el aplicativo"]
[null,null,null,null,null,null,null,null,null,null,null,null,"Cargar la estimación de gastos de funcionamiento para la siguiente vigencia ","Jefatura de Apoyo Académico","Recurso Humano\nOffice 365\nCargue de información en Integradoc","IIPA 2024 ","Información cargada en Integradoc"]
[null,null,null,null,null,null,null,null,null,null,null,null,"Priorizar las licencias a adquirir con el presupuesto asignado","Jefatura de Apoyo Académico","Recurso Humano\nOffice 365","IIPA 2024 ","Resolución de adición de recursos"]
[null,null,null,null,null,null,null,null,null,null,null,null,"Ejecutar el presupuesto asignado de las licencias para el funcionamiento","Jefatura de Apoyo Académico","Recurso Humano\nOffice 365","IIPA 2024\nVigencia 2025","Tablero de control"]
[null,null,null,null,null,null,null,null,null,null,null,null,"Medir los resultados de la  disponibilidad de Softwares Académicos ","Jefatura de Apoyo Académico","Recurso Humano\nOffice 365","Jun - 24\nDic - 24","Medición del indicador"]
[null,null,null,null,null,null,null,null,null,null,null,null,"Implementar acciones según los resultados","Jefatura de Apoyo Académico","Recurso Humano\nOffice 365","Según la necesidad","Ficha técnica de indicador - Acción formulada"]
[null,null,null,null,null,null,null,"Suficiencia de elementos educativos","Elementos educativos adquiridos para la academia*100/ Total de elementos educativos priorizados requeridos por la academia (solicitudes vigencia anterior)\n","Acreditación","Semestral",1,"Planificar el cronograma para la apertura del aplicativo para la adquisición de elementos educativos","Jefatura de Apoyo Académico","Recurso Humano\nOffice 365","2023-12-01","Cronograma",null,{"$f":"'AAA-9'!D49","v":0.43532145623547636},null,"AAA-9"]
[null,null,null,null,null,null,null,null,null,null,null,null,"Aperturar en el aplicativo la relación de las fechas de recepción de solicitudes para la adquisición de elementos educativos","Jefatura de Apoyo Académico","Recurso Humano\nOffice 365","1 al 24 de mayo 2024","Solicitudes realizadas en el aplicativo"]
[null,null,null,null,null,null,null,null,null,null,null,null,"Validar las solicitudes realizadas en el aplicativo","Jefatura de Apoyo Académico","Recurso Humano\nOffice 365","2024-06-01","Solicitudes realizadas en el aplicativo"]
[null,null,null,null,null,null,null,null,null,null,null,null,"Cargar la estimación de gastos de funcionamiento para la siguiente vigencia ","Jefatura de Apoyo Académico","Recurso Humano\nOffice 365\nCargue de información en Integradoc","IIPA 2024 ","Información cargada en Integradoc"]
[null,null,null,null,null,null,null,null,null,null,null,null,"Priorizar los elementos educativos a adquirir con el presupuesto asignado","Jefatura de Apoyo Académico","Recurso Humano\nOffice 365","IIPA 2024 ","Resolución de adición de recursos"]
[null,null,null,null,null,null,null,null,null,null,null,null,"Ejecutar el presupuesto asignado para los mantenimientos","Jefatura de Apoyo Académico","Recurso Humano\nOffice 365","IIPA 2024\nVigencia 2025","Tablero de control"]
[null,null,null,null,null,null,null,null,null,null,null,null,"Medir los resultados de la suficiencia de elementos educativos","Jefatura de Apoyo Académico","Recurso Humano\nOffice 365","Jun - 24\nDic - 24","Medición del indicador"]
[null,null,null,null,null,null,null,null,null,null,null,null,"Implementar acciones según los resultados","Jefatura de Apoyo Académico","Recurso Humano\nOffice 365","Según la necesidad","Ficha técnica de indicador - Acción formulada"]
[null,null,null,null,null,null,null,"Recursos de apoyo - Usabilidad de laboratorios","Número de visitas a los laboratorios * 100/Total de estudiantes activos para el uso del laboratorio ","Acreditación","Semestral",2,"Realizar la validación de la asistencia de la usabilidad de los laboratorios en cada periodo académico","Jefatura de Apoyo Académico","Recurso Humano\nOffice 365\nPlataforma Gestasoft","Inicio de:\nIPA 2024\nIIPA 2023","Link para realizar el registro de la usabilidad",null,null,null,"AAA-11"]
[null,null,null,null,null,null,null,null,null,null,null,null,"Verificar el cargue de la información en plataforma","Jefatura de Apoyo Académico","Recurso Humano\nOffice 365\nPlataforma Gestasoft","Vigencia 2024","Aplicativo \"Asistencia UAA\""]
[null,null,null,null,null,null,null,null,null,null,null,null,"Reportar y consolidar la usabilidad de los laboratorios generados en el aplicativo","Jefatura de Apoyo Académico","Recurso Humano\nOffice 365\nPlataforma Gestasoft","Finalizar cada periodo académico","Tablero de control"]
[null,null,null,null,null,null,null,null,null,null,null,null,"Medir los resultados de los recursos de apoyo - Usabilidad de laboratorios","Jefatura de Apoyo Académico","Recurso Humano\nOffice 365","Jun - 24\nDic - 24","Medición del indicador"]
[null,null,null,null,null,null,null,null,null,null,null,null,"Implementar acciones según los resultados","Jefatura de Apoyo Académico","Recurso Humano\nOffice 365","Según la necesidad","Ficha técnica de indicador - Acción formulada"]
[null,null,null,null,null,null,null,"Usabilidad de recursos bibliográficos, (bases de datos, libros impresos y digitales)","Número de consultas en relación con los recursos bibliográficos de la Ucundinamarca","Acreditación","Semestral",70000,"Actualización de las bases de datos de los recursos bibliográficos","Unidad de Apoyo Académico - CGCA","Recurso Humano\nOffice 365","De acuerdo a la necesidad","Actualización de las bases de datos",null,null,null,"AAA-12"]
[null,null,null,null,null,null,null,null,null,null,null,null,"Reportar y consolidar la usabilidad de los recursos bibliográficos","Unidad de Apoyo Académico - CGCA","Recurso Humano\nOffice 365","Finalizar cada periodo académico","Reporte consolidado de las bases de datos"]
[null,null,null,null,null,null,null,null,null,null,null,null,"Medir los resultados de la usabilidad de recursos bibliográficos, (bases de datos, libros impresos y digitales) ","Jefatura de Apoyo Académico","Recurso Humano\nOffice 365","Jun - 24\nDic - 24","Medición del indicador"]
[null,null,null,null,null,null,null,null,null,null,null,null,"Implementar acciones según los resultados","Jefatura de Apoyo Académico","Recurso Humano\nOffice 365","Según la necesidad","Ficha técnica de indicador - Acción formulada"]
[null,null,null,"Consolidación de una organización universitaria inteligente con alma y corazón","5. Mejorar continuamente el desempeño de los procesos a través de la implementación de buenas prácticas institucionales y de la aplicación de los mecanismos dispuestos por la Universidad de Cundinamarca, para la constitución de una organización universitaria inteligente con alma y corazón.",null,null,"Mantenimiento a Elementos Educativos"," Total de Elementos Educativos Con Mantenimiento Realizado *100/ Total de Elementos Educativos que Requieren Mantenimiento de acuerdo a Priorización","Eficacia","Semestral",1,"Planificar el cronograma para la apertura del aplicativo entorno a la adquisición para el mantenimiento de los equipos","Jefatura de Apoyo Académico","Recurso Humano\nOffice 365","2024-12-01","Cronograma",null,{"$f":"'AAA-5'!D49","v":0.21938325991189428},null,"AAA-5"]
[null,null,null,null,null,null,null,null,null,null,null,null,"Aperturar en el aplicativo de la relación de las fechas de recepción de solicitudes de los mantenimientos requeridos","Jefatura de Apoyo Académico","Recurso Humano\nOffice 365","1 al 24 de mayo 2024","Solicitudes realizadas en el aplicativo"]
[null,null,null,null,null,null,null,null,null,null,null,null,"Validar las solicitudes realizadas en el aplicativo","Jefatura de Apoyo Académico","Recurso Humano\nOffice 365","2024-06-01","Solicitudes realizadas en el aplicativo"]
[null,null,null,null,null,null,null,null,null,null,null,null,"Cargar la estimación de gastos de funcionamiento para la siguiente vigencia","Jefatura de Apoyo Académico","Recurso Humano\nOffice 365\nCargue de información en Integradoc","IIPA 2024 ","Información cargada en Integradoc"]
[null,null,null,null,null,null,null,null,null,null,null,null,"Priorizar los mantenimientos a realizar con el presupuesto asignado","Jefatura de Apoyo Académico","Recurso Humano\nOffice 365","IIPA 2024 ","Resolución de adición de recursos"]
[null,null,null,null,null,null,null,null,null,null,null,null,"Ejecutar el presupuesto asignado para los mantenimientos","Jefatura de Apoyo Académico","Recurso Humano\nOffice 365","IIPA 2024\nVigencia 2025","Tablero de control"]
[null,null,null,null,null,null,null,null,null,null,null,null,"Medir los resultados de los mantenimiento realizados a los Elementos Educativos","Jefatura de Apoyo Académico","Recurso Humano\nOffice 365","Jun - 24\nDic - 24","Medición del indicador"]
[null,null,null,null,null,null,null,null,null,null,null,null,"Implementar acciones según los resultados","Jefatura de Apoyo Académico","Recurso Humano\nOffice 365","Según la necesidad","Ficha técnica de indicador - Acción formulada"]
[null,null,null,null,null,null,"Realizar la calibración del total de los equipos y elementos reportados por la Dirección de Ciencia y Tecnología y los cuales serán utilizados para los proyectos de investigación a realizar en el 2024.","Calibración de equipo y elementos educativos de investigación","Total de equipos con calibración realizada *100/ 100% del total de equipos reportados por la Dirección de Investigación y con presupuesto asignado","Eficacia","Semestral",1,"Planificar el cronograma de los equipos y/o elementos requeridos para calibración","Jefatura de Apoyo Académico","Recurso Humano\nOffice 365","2023-12-01","Cronograma",null,{"$f":"'AAA-2'!D44","v":0},null,"AAA-2"]
[null,null,null,null,null,null,null,null,null,null,null,null,"Estimar de acuerdo al reporte de Ciencia y Tecnología,  los equipos y/o elementos que requieren calibración","Jefatura de Apoyo Académico","Recurso Humano\nOffice 365","IIPA2024","Tablero de control"]
[null,null,null,null,null,null,null,null,null,null,null,null,"Cargar la estimación de gastos de funcionamiento para la siguiente vigencia ","Jefatura de Apoyo Académico","Recurso Humano\nOffice 365\nCargue de información en Integradoc","IIPA 2024 ","Información cargada en Integradoc"]
[null,null,null,null,null,null,null,null,null,null,null,null,"Ejecutar el presupuesto asignado para los mantenimientos","Jefatura de Apoyo Académico","Recurso Humano\nOffice 365","IIPA 2024\nVigencia 2025","Tablero de control"]
[null,null,null,null,null,null,null,null,null,null,null,null,"Medir los resultados de la calibración de equipo y elementos educativos de investigación","Jefatura de Apoyo Académico","Recurso Humano\nOffice 365","Jun - 24\nDic - 24","Medición del indicador"]
[null,null,null,null,null,null,null,null,null,null,null,null,"Implementar acciones según los resultados","Jefatura de Apoyo Académico","Recurso Humano\nOffice 365","Según la necesidad","Ficha técnica de indicador - Acción formulada"]
[]
[]
[]
[]
[null,"Diagonal 18 No. 20-29 Fusagasugá – Cundinamarca\nTeléfono (601)  8281483 Línea Gratuita 018000180414\nwww.ucundinamarca.edu.co   E-mail:  info@ucundinamarca.edu.co\nNIT: 890.680.062-2                                                                             "]
[null,"Documento controlado por el Sistema de Gestión de la Calidad\nAsegúrese que corresponde a la última versión consultando el Portal Institucional"]
[]
[]
[]
[]
[]
[]
[]
[]
[null,null,"LINEAMIENTOS DE LA POLÍTICA DE CALIDAD","OBJETIVOS DE CALIDAD","ALINEACIÓN DE LOS INDICADORES CON LOS DOCUMENTOS ESTRATÉGICOS Y LOS OBJETIVOS DE CALIDAD"]
[null,null,"LINEAMIENTOS DE LA POLÍTICA DE SEGURIDAD Y SALUD EN EL TRABAJO","OBJETIVOS DE SEGURIDAD Y SALUD EN EL TRABAJO","ALINEACIÓN DE LOS INDICADORES CON LOS DOCUMENTOS ESTRATÉGICOS Y LOS OBJETIVOS DE SEGURIDAD Y SALUD EN EL TRABAJO"]
[null,null,"LINEAMIENTOS DE LA POLÍTICA DE AMBIENTAL","OBJETIVOS DE AMBIENTAL","ALINEACIÓN DE LOS INDICADORES CON LOS DOCUMENTOS ESTRATÉGICOS Y LOS OBJETIVOS DE AMBIENTAL"]
[null,null,"LINEAMIENTOS DE LA POLÍTICA DE SEGURIDAD DE LA INFORMACIÓN","OBJETIVOS DE SEGURIDAD DE LA INFORMACIÓN","ALINEACIÓN DE LOS INDICADORES CON LOS DOCUMENTOS ESTRATÉGICOS Y LOS OBJETIVOS DE SEGURIDAD DE LA INFORMACIÓN"]
[null,null,"LINEAMIENTOS DE LA POLÍTICA DE SEGURIDAD DE ANTISOBORNO","OBJETIVOS DE SEGURIDAD DE ANTISOBORNO","ALINEACIÓN DE LOS INDICADORES CON LOS DOCUMENTOS ESTRATÉGICOS Y LOS OBJETIVOS DE SEGURIDAD DE ANTISOBORNO"]
[null,null,"LINEAMIENTOS DE LA POLÍTICA DE LA CONCILIACIÓN DE LA VIDA PERSONAL, FAMILIAR Y LABORAL","OBJETIVOS DE LA CONCILIACIÓN DE LA VIDA PERSONAL, FAMILIAR Y LABORAL","ALINEACIÓN DE LOS INDICADORES CON LOS DOCUMENTOS ESTRATÉGICOS Y LOS OBJETIVOS DE LA CONCILIACIÓN DE LA VIDA PERSONAL, FAMILIAR Y LABORAL"]

{"sheet":"AAA-1","index":1,"n_rows":101,"n_cols":15,"rows_kept":101,"cut":false,"hidden":false,"merged":[[12,2,12,3],[12,4,12,14],[13,2,13,3],[13,4,13,14],[14,2,14,14],[15,2,15,14],[8,2,8,14],[9,2,10,14],[11,2,11,3],[11,4,11,7],[11,8,11,9],[11,10,11,14],[1,1,3,2],[4,2,7,3],[4,4,4,11],[4,12,4,14],[5,4,5,11],[5,12,5,14],[6,4,7,11],[6,12,6,14],[7,12,7,14],[16,15,17,15],[17,2,18,3],[17,4,17,5],[17,6,17,10],[17,11,18,12],[17,13,18,14],[18,4,18,5],[18,6,18,10],[16,2,16,3],[16,4,16,6],[16,7,16,8],[16,9,16,10],[16,11,16,12],[16,13,16,14],[19,7,21,8],[19,9,21,10],[19,11,19,14],[22,2,22,3],[22,4,22,6],[22,7,23,8],[22,9,23,10],[22,11,23,12],[26,15,27,15],[27,9,29,14],[19,2,21,3],[19,4,21,6],[30,9,30,14],[31,9,36,14],[37,9,37,14],[38,9,38,14],[22,13,23,14],[23,2,23,3],[23,4,23,6],[25,2,25,14],[26,2,39,8],[26,9,26,14],[39,9,39,14],[51,2,51,5],[51,6,51,9],[51,10,51,14],[52,2,52,5],[52,6,52,9],[52,10,52,14],[41,2,41,14],[48,2,48,14],[49,2,49,5],[49,6,49,9],[49,10,49,14],[50,2,50,5],[50,6,50,9],[50,10,50,14],[55,2,55,5],[55,6,55,9],[55,10,55,14],[56,2,56,5],[56,6,56,9],[56,10,56,14],[53,2,53,5],[53,6,53,9],[53,10,53,14],[54,2,54,5],[54,6,54,9],[54,10,54,14],[59,2,59,5],[59,6,59,9],[59,10,59,14],[60,2,60,5],[60,6,60,9],[60,10,60,14],[57,2,57,5],[57,6,57,9],[57,10,57,14],[58,2,58,5],[58,6,58,9],[58,10,58,14],[64,2,64,5],[64,6,64,9],[63,2,63,5],[63,6,63,9],[63,10,63,14],[61,2,61,5],[61,6,61,9],[61,10,61,14],[62,2,62,5],[62,6,62,9],[62,10,62,14],[64,10,64,14]]}
[]
[null,"      REGRESAR"]
[]
[]
[null,null,null,null,"MACROPROCESO ESTRATÉGICO",null,null,null,null,null,null,null,"CÓDIGO: ESGr027"]
[null,null,null,null,"PROCESO GESTIÓN SISTEMAS INTEGRADOS",null,null,null,null,null,null,null,"VERSIÓN: 8"]
[null,null,null,null,"MATRIZ DE MEDICIÓN Y SEGUIMIENTO A LOS PROCESOS DE GESTIÓN",null,null,null,null,null,null,null,"VIGENCIA: 2023-07-28"]
[null,null,null,null,null,null,null,null,null,null,null,null,"PÁGINA: 2 de 8"]
[]
[null,null,"FICHA DE INDICADOR"]
[]
[null,null,"MACROPROCESO",null,"Apoyo",null,null,null,"NOMBRE DEL INDICADOR",null,"Disponibilidad de Softwares Académicos"]
[null,null,"PROCESO GESTIÓN",null,"Apoyo Académico"]
[null,null,"RESPONSABLE DE MEDICIÓN",null,"Jefe de la Unidad de Apoyo Académico"]
[]
[null,null,"1. COMPORTAMIENTO DE INDICADOR"]
[null,null,"CLASIFICACIÓN DE LA MEDICIÓN",null,1,null,null,"TIPO DE INDICADOR",null,"Acreditación",null,"META ANUAL",null,1]
[null,null,"FORMULA",null,"NUMERADOR",null,"Número de licencias que mantienen en continuidad en el periodo académico * 100",null,null,null,null,"UNIDAD DE MEDIDA",null,"Porcentual"]
[null,null,null,null,"DENOMINADOR",null,"Número total de licencias adquiridas"]
[null,null,"TENDENCIA",null,"Positiva",null,null,"NIVEL DE SEGREGACIÓN *",null,"Por Programa Académico",null,"ESCALA"]
[null,null,null,null,null,null,null,null,null,null,null,"Deficiente","Aceptable","Bueno","Excelente"]
[null,null,null,null,null,null,null,null,null,null,null,"0 - 60%","61% - 80%","80,1% - 100%",">100"]
[null,null,"ORIGEN DE DATOS NUMERADOR",null,"Inventario AAAr111",null,null,"FRECUENCIA DE LA MEDICIÓN",null,"SEMESTRAL",null,"FRECUENCIA DE RESULTADO",null,"SEMESTRAL"]
[null,null,"ORIGEN DE DATOS DENOMINADOR",null,"Aplicativo Apoyo Académico"]
[]
[null,null,"RESULTADOS"]
[null,null,null,null,null,null,null,null,null,"ANÁLISIS DE DATOS"]
[null,null,null,null,null,null,null,null,null,"I SEMESTRE: Para el primer periodo académico del 2024, la Unidad de Apoyo aseguró la operatividad y disponibilidad de un total de 40 licencias de software, las cuales son utilizadas en los distintos programas académicos de la Universidad de Cundinamarca.\nDe igual modo se llevó a cabo el proceso de renovación de 10 licencias asegurando su disponibilidad \n- FLEXSIM: F-OCS-018   -  ATLAS TI: F-OCC-020\n- PIX4D: F-OCS-052        -  MAGNET FIELD: F-OCS-032\n- ADOBE CREATIVE CLOUD: F-OCS-021 - INTERHERD: F-OCS-024\n- FINALE: F-OCC-027      -  CASSY LAB2: F-OCS-048\n- PROTEUS: F-CPS-060  - LEYLAB: F-OCS-082\n\nPor otro lado, las licencias de LABVIEW y MULTISIM, las cuales no fueron solicitadas para renovación para los años 2023 y 2024, vencieron el 13/01/2024. No obstante, han continuado funcionalidad mediante un servicio temporal vitalicio durante el primer periodo académico del 2024, asegurando así el servicio para los estudiantes del programa de Ingeniería Electrónica.\n\nII SEMESTRE: En el segundo semestre del año 2024, se observa una disminución del 7,5% en la cantidad de licencias de software disponibles para la academia. Esta disminución se debe al vencimiento de tres licencias durante el periodo académico, las cuales no fueron solicitadas por los programas en la convocatoria de software académico de 2023.\nA pesar de esta reducción, se garantiza el funcionamiento y la continuidad de 37 licencias, lo que representa el 100% de las solicitudes y adquisiciones de software para el año 2024. Estas licencias fueron implementadas en su totalidad por los programas académicos, asegurando así el adecuado soporte a las necesidades tecnológicas y de aprendizaje de la academia."]
[]
[]
[null,null,null,null,null,null,null,null,null,"ACCIÓN FORMULADA"]
[null,null,null,null,null,null,null,null,null,"I SEMESTRE: La Unidad de Apoyo Académico habilita el servicio de solicitud de \"Licenciamiento de software\" dentro de la pataforma Institucional, mediante el cual los gestores del Conocimiento y Coordinadores de programa pueden solicitar la adquisición y/o renovación de las licencias  necesarias para llevar a cabo los procesos académicos. El gestor responsable del proceso verifica las solicitudes, valida la información y proyecta el presupuesto necesario para llevar a cabo la contratación de las licencias solicitadas. Es importante destacar que si no se realiza la solicitud de la licencia, la Unidad de Apoyo Académico no podrá adquirirla, ni renovarla.\n\nII SEMESTRE: A través de la apertura y socialización de las convocatorias, se busca mantener a los coordinadores y gestores de conocimiento debidamente informados, con el objetivo de evitar que la falta de información impida la realización de solicitudes. Además, se lleva a cabo un seguimiento constante durante el periodo de habilitación de la convocatoria para monitorear la cantidad de solicitudes realizadas por los programas académicos. Este proceso asegura que se logre la adquisición del 100% de las licencias necesarias y concurrentes, garantizando así el adecuado desarrollo de las prácticas formativas."]
[]
[]
[]
[]
[]
[null,null,null,null,null,null,null,null,null,"RESPONSABLE "]
[null,null,null,null,null,null,null,null,null,{"$f":"E14","v":"Jefe de la Unidad de Apoyo Académico"}]
[]
[]
[null,null,"PERIODO DE EVALUACIÓN"]
[null,null,"MES",{"$f":"IF(J23=\"MENSUAL\",\"ENERO\",IF(J23=\"TRIMESTRAL\",\"MARZO\",IF(J23=\"SEMESTRAL\",\"JUNIO\",IF(J23=\"ANUAL\",YEAR(TODAY()),\"\"))))","v":"JUNIO"},{"$f":"IF(J23=\"MENSUAL\",\"FEBRERO\",IF(J23=\"TRIMESTRAL\",\"JUNIO\",IF(J23=\"SEMESTRAL\",\"DICIEMBRE\",\"\")))","v":"DICIEMBRE"},{"$f":"IF(J23=\"MENSUAL\",\"MARZO\",IF(J23=\"TRIMESTRAL\",\"SEPTIEMBRE\",\"\"))","v":""},{"$f":"IF(J23=\"MENSUAL\",\"ABRIL\",IF(J23=\"TRIMESTRAL\",\"DICIEMBRE\",\"\"))","v":""},{"$f":"IF(J23=\"MENSUAL\",\"MAYO\",\"\")","v":""},{"$f":"IF(J23=\"MENSUAL\",\"JUNIO\",\"\")","v":""},{"$f":"IF(J23=\"MENSUAL\",\"JULIO\",\"\")","v":""},{"$f":"IF(J23=\"MENSUAL\",\"AGOSTO\",\"\")","v":""},{"$f":"IF(J23=\"MENSUAL\",\"SEPTIEMBRE\",\"\")","v":""},{"$f":"IF(J23=\"MENSUAL\",\"OCTUBRE\",\"\")","v":""},{"$f":"IF(J23=\"MENSUAL\",\"NOVIEMBRE\",\"\")","v":""},{"$f":"IF(J23=\"MENSUAL\",\"DICIEMBRE\",\"\")","v":""}]
[null,null,{"$f":"G18","v":"Número de licencias que mantienen en continuidad en el periodo académico * 100"},40,37]
[null,null,{"$f":"G19","v":"Número total de licencias adquiridas"},40,37]
[null,null,"VALOR ",{"$f":"IFERROR(IF($E$17=1,D44/D45,IF($E$17=2,D44,\"\")),\"\")","v":1},1,"","","","","","","","","",""]
[null,null,"META PONDERADA",{"$f":"IF(AND(N23=\"ANUAL\",J23=\"MENSUAL\"),N17/12,IF(AND(N23=\"ANUAL\",J23=\"TRIMESTRAL\"),N17/4,IF(AND(N23=\"ANUAL\",J23=\"SEMESTRAL\"),N17/2,IF(AND(N23=\"ANUAL\",J23=\"ANUAL\"),N17,IF(AND(N23=\"SEMESTRAL\",J23=\"MENSUAL\"),N17/6,IF(AND(N23=\"SEMESTRAL\",J23=\"TRIMESTRAL\"),N17/2,IF(AND(N23=\"SEMESTRAL\",J23=\"SEMESTRAL\"),N17,IF(AND(N23=\"SEMESTRAL\",J23=\"ANUAL\"),\"REVISAR FRECUENCIAS\",IF(AND(N23=\"TRIMESTRAL\",J23=\"MENSUAL\"),N17/3,IF(AND(N23=\"TRIMESTRAL\",J23=\"TRIMESTRAL\"),N17,IF(AND(N23=\"TRIMESTRAL\",J23=\"SEMESTRAL\"),\"REVISAR FRECUENCIAS\",IF(AND(N23=\"TRIMESTRAL\",J23=\"ANUAL\"),\"REVISAR FRECUENCIAS\",IF(AND(N23=\"MENSUAL\",J23=\"MENSUAL\"),N17,IF(AND(N23=\"MENSUAL\",J23=\"TRIMESTRAL\"),\"REVISAR FRECUENCIAS\",IF(AND(N23=\"MENSUAL\",J23=\"SEMESTRAL\"),\"REVISAR FRECUENCIAS\",IF(AND(N23=\"MENSUAL\",J23=\"ANUAL\"),\"REVISAR FRECUENCIAS\",\"\"))))))))))))))))","v":1},{"$f":"IF(AND(N23=\"ANUAL\",J23=\"MENSUAL\"),N17/12+D47,IF(AND(N23=\"ANUAL\",J23=\"TRIMESTRAL\"),N17/4+D47,IF(AND(N23=\"ANUAL\",J23=\"SEMESTRAL\"),N17/2+D47,IF(AND(N23=\"SEMESTRAL\",J23=\"MENSUAL\"),N17/6+D47,IF(AND(N23=\"SEMESTRAL\",J23=\"TRIMESTRAL\"),N17/2+D47,IF(AND(N23=\"SEMESTRAL\",J23=\"SEMESTRAL\"),N17,IF(AND(N23=\"TRIMESTRAL\",J23=\"MENSUAL\"),N17/3+D47,IF(AND(N23=\"TRIMESTRAL\",J23=\"TRIMESTRAL\"),N17,IF(AND(N23=\"MENSUAL\",J23=\"MENSUAL\"),N17,\"\")))))))))","v":1},{"$f":"IF(AND(N23=\"ANUAL\",J23=\"MENSUAL\"),N17/12+E47,IF(AND(N23=\"ANUAL\",J23=\"TRIMESTRAL\"),N17/4+E47,IF(AND(N23=\"SEMESTRAL\",J23=\"MENSUAL\"),N17/6+E47,IF(AND(N23=\"SEMESTRAL\",J23=\"TRIMESTRAL\"),N17/2,IF(AND(N23=\"TRIMESTRAL\",J23=\"MENSUAL\"),N17/3+E47,IF(AND(N23=\"TRIMESTRAL\",J23=\"TRIMESTRAL\"),N17,IF(AND(N23=\"MENSUAL\",J23=\"MENSUAL\"),N17,\"\")))))))","v":""},{"$f":"IF(AND(N23=\"ANUAL\",J23=\"MENSUAL\"),N17/12+F47,IF(AND(N23=\"ANUAL\",J23=\"TRIMESTRAL\"),N17/4+F47,IF(AND(N23=\"SEMESTRAL\",J23=\"MENSUAL\"),N17/6+F47,IF(AND(N23=\"SEMESTRAL\",J23=\"TRIMESTRAL\"),N17/2+F47,IF(AND(N23=\"TRIMESTRAL\",J23=\"MENSUAL\"),N17/3,IF(AND(N23=\"TRIMESTRAL\",J23=\"TRIMESTRAL\"),N17,IF(AND(N23=\"MENSUAL\",J23=\"MENSUAL\"),N17,\"\")))))))","v":""},{"$f":"IF(AND($N$23=\"ANUAL\",$J$23=\"MENSUAL\"),$N$17/12+G47,IF(AND(N23=\"SEMESTRAL\",J23=\"MENSUAL\"),N17/6+G47,IF(AND(N23=\"TRIMESTRAL\",J23=\"MENSUAL\"),N17/3+G47,IF(AND(N23=\"MENSUAL\",J23=\"MENSUAL\"),N17,\"\"))))","v":""},{"$f":"IF(AND($N$23=\"ANUAL\",$J$23=\"MENSUAL\"),$N$17/12+H47,IF(AND(N23=\"SEMESTRAL\",J23=\"MENSUAL\"),N17/6+H47,IF(AND(N23=\"TRIMESTRAL\",J23=\"MENSUAL\"),N17/3+H47,IF(AND(N23=\"MENSUAL\",J23=\"MENSUAL\"),N17,\"\"))))","v":""},{"$f":"IF(AND($N$23=\"ANUAL\",$J$23=\"MENSUAL\"),$N$17/12+I47,IF(AND(N23=\"SEMESTRAL\",J23=\"MENSUAL\"),N17/6,IF(AND(N23=\"TRIMESTRAL\",J23=\"MENSUAL\"),N17/3,IF(AND(N23=\"MENSUAL\",J23=\"MENSUAL\"),N17,\"\"))))","v":""},{"$f":"IF(AND($N$23=\"ANUAL\",$J$23=\"MENSUAL\"),$N$17/12+J47,IF(AND(N23=\"SEMESTRAL\",J23=\"MENSUAL\"),N17/6+J47,IF(AND(N23=\"TRIMESTRAL\",J23=\"MENSUAL\"),N17/3+J47,IF(AND(N23=\"MENSUAL\",J23=\"MENSUAL\"),N17,\"\"))))","v":""},{"$f":"IF(AND($N$23=\"ANUAL\",$J$23=\"MENSUAL\"),$N$17/12+K47,IF(AND(N23=\"SEMESTRAL\",J23=\"MENSUAL\"),N17/6+K47,IF(AND(N23=\"TRIMESTRAL\",J23=\"MENSUAL\"),N17/3+K47,IF(AND(N23=\"MENSUAL\",J23=\"MENSUAL\"),N17,\"\"))))","v":""},{"$f":"IF(AND($N$23=\"ANUAL\",$J$23=\"MENSUAL\"),$N$17/12+L47,IF(AND(N23=\"SEMESTRAL\",J23=\"MENSUAL\"),N17/6+L47,IF(AND(N23=\"TRIMESTRAL\",J23=\"MENSUAL\"),N17/3,IF(AND(N23=\"MENSUAL\",J23=\"MENSUAL\"),N17,\"\"))))","v":""},{"$f":"IF(AND($N$23=\"ANUAL\",$J$23=\"MENSUAL\"),$N$17/12+M47,IF(AND(N23=\"SEMESTRAL\",J23=\"MENSUAL\"),N17/6+M47,IF(AND(N23=\"TRIMESTRAL\",J23=\"MENSUAL\"),N17/3+M47,IF(AND(N23=\"MENSUAL\",J23=\"MENSUAL\"),N17,\"\"))))","v":""},{"$f":"IF(AND($N$23=\"ANUAL\",$J$23=\"MENSUAL\"),$N$17/12+N47,IF(AND(N23=\"SEMESTRAL\",J23=\"MENSUAL\"),N17/6+N47,IF(AND(N23=\"TRIMESTRAL\",J23=\"MENSUAL\"),N17/3+N47,IF(AND(N23=\"MENSUAL\",J23=\"MENSUAL\"),N17,\"\"))))","v":""}]
[]
[null,null,"NIVEL DE SEGREGACIÓN *"]
[null,null,"UNIDAD SEGREGADA (Ej. Facultad, Programa Académico, Área)",null,null,null,"RESULTADO",null,null,null,"ANALISIS DE DATOS SEGREGADO"]
[null,null,"ADMINISTRACION DE EMPRESAS - CONTADURIA PUBLICA",null,null,null,5.4100000000000002E-2,null,null,null,"Los programas académicos cuentan con 2 licencias activas "]
[null,null,"CIENCIAS BASICAS",null,null,null,5.4100000000000002E-2,null,null,null,"El programa cuenta con 2 licencias vitalicias activas "]
[null,null,"CONTADURIA PUBLICA",null,null,null,0.1081,null,null,null,"El programa cuenta con 4 licencias activas "]
[null,null,"ENFERMERIA - PSICOLOGIA",null,null,null,2.7E-2,null,null,null,"Los programas académicos cuentan con 1 licencias activas "]
[null,null,"ENFERMERIA - PSICOLOGIA - SOCIALES",null,null,null,2.7E-2,null,null,null,"Los programas académicos cuentan con 1 licencias activas "]
[null,null,"INGENIERIA DE SISTEMAS ",null,null,null,5.4100000000000002E-2,null,null,null,"Los programas académicos cuentan con 2 licencias Vitalicias activas "]
[null,null,"INGENIERIA DE SISTEMAS - MUSICA",null,null,null,2.7E-2,null,null,null,"Los programas académicos cuentan con 1 licencias activas "]
[null,null,"INGENIERIA ELECTRONICA ",null,null,null,0.1351,null,null,null,"El programa cuenta con 5 licencias activas, siendo dos de ellas vitalicias  "]
[null,null,"INGENIERIA ELECTRONICA - INGENIERA DE SISTEMAS ",null,null,null,2.7E-2,null,null,null,"Los programas académicos cuentan con 1 licencias activas "]
[null,null,"INGENIERIA ELECTRONICA - INGENIERA INDUSTRIAL",null,null,null,2.7E-2,null,null,null,"Los programas académicos cuentan con 1 licencias activas "]
[null,null,"INGENIERIA INDUSTRIAL",null,null,null,8.1100000000000005E-2,null,null,null,"El programa cuenta con 3 licencias activas"]
[null,null,"MUSICA",null,null,null,8.1100000000000005E-2,null,null,null,"EL programa académico cuentan con 3 licencias Vitalicias activas "]
[null,null,"TECNOLOGIA EN CARTOGRAFIA -AGRONOMIA",null,null,null,0.1081,null,null,null,"El programa cuenta con 4 licencias activas, siendo tres de ellas vitalicias  "]
[null,null,"TECNOLOGIA EN CARTOGRAFIA -INGENIERIA AMBIENTAL-AGRONOMIA",null,null,null,2.7E-2,null,null,null,"Los programas académicos cuentan con 1 licencias activas "]
[null,null,"ZOOTECNIA",null,null,null,0.16220000000000001,null,null,null,"El programa cuenta con 7 licencias activas, siendo una  de ellas vitalicias  "]
[]
[]
[]
[]
[]
[]
[]
[]
[]
[null,null,null,null,null,null,"Estratégico",null,null,"Eficacia"]
[null,null,null,null,null,null,"Misional",null,null,"Eficiencia"]
[null,null,null,null,null,null,"Apoyo",null,null,"Acreditación"]
[null,null,null,null,null,null,"Seguimiento, Medición, Análisis y Evaluación",null,null,"Positiva"]
[null,null,null,null,null,null,"Direccionamiento Estratégico",null,null,"Negativa"]
[null,null,null,null,null,null,"Planeación Institucional",null,null,"Por Unidad Regional"]
[null,null,null,null,null,null,"Proyectos Especiales y Relaciones Interinstitucionales",null,null,"Por Facultad"]
[null,null,null,null,null,null,"Sistemas Integrados",null,null,"Por Programa Académico"]
[null,null,null,null,null,null,"Autoevaluación y Acreditación",null,null,"Por área"]
[null,null,null,null,null,null,"Comunicaciones",null,null,"Por Laboratorio"]
[null,null,null,null,null,null,"Formación y Aprendizaje",null,null,"Otros"]
[null,null,null,null,null,null,"Ciencia, Tecnología e Innovación",null,null,"No Aplica"]
[null,null,null,null,null,null,"Interacción Social Universitaria"]
[null,null,null,null,null,null,"Bienestar Universitario"]
[null,null,null,null,null,null,"Admisiones y Registro"]
[null,null,null,null,null,null,"Graduados"]
[null,null,null,null,null,null,"Dialogando con el Mundo"]
[null,null,null,null,null,null,"Talento Humano"]
[null,null,null,null,null,null,"Jurídica"]
[null,null,null,null,null,null,"Financiera"]
[null,null,null,null,null,null,"Sistemas y Tecnología"]
[null,null,null,null,null,null,"Bienes y Servicios"]
[null,null,null,null,null,null,"Documental"]
[null,null,null,null,null,null,"Apoyo Académico"]
[null,null,null,null,null,null,"Control Interno"]
[null,null,null,null,null,null,"Control Disciplinario"]
[null,null,null,null,null,null,"Servicio de Atención al Ciudadano"]

{"sheet":"AAA-2","index":2,"n_rows":93,"n_cols":15,"rows_kept":93,"cut":false,"hidden":false,"merged":[[1,1,3,2],[4,2,7,3],[4,4,4,11],[4,12,4,14],[5,4,5,11],[5,12,5,14],[6,4,7,11],[6,12,6,14],[7,12,7,14],[15,2,15,14],[8,2,8,14],[9,2,10,14],[11,2,11,3],[11,4,11,7],[11,8,11,9],[11,10,11,14],[12,2,12,3],[12,4,12,14],[13,2,13,3],[13,4,13,14],[14,2,14,14],[16,15,17,15],[17,2,18,3],[17,4,17,5],[17,6,17,10],[17,11,18,12],[17,13,18,14],[18,4,18,5],[18,6,18,10],[16,2,16,3],[16,4,16,6],[16,7,16,8],[16,9,16,10],[16,11,16,12],[16,13,16,14],[19,2,21,3],[19,4,21,6],[19,7,21,8],[19,9,21,10],[19,11,19,14],[22,13,23,14],[23,2,23,3],[23,4,23,6],[25,2,25,14],[26,2,37,8],[26,9,26,14],[37,9,37,14],[22,2,22,3],[22,4,22,6],[22,7,23,8],[22,9,23,10],[22,11,23,12],[48,2,48,5],[48,6,48,9],[48,10,48,14],[26,15,27,15],[27,9,27,14],[28,9,28,14],[29,9,34,14],[35,9,35,14],[36,9,36,14],[39,2,39,14],[46,2,46,14],[47,2,47,5],[47,6,47,9],[47,10,47,14],[49,2,49,5],[49,6,49,9],[49,10,49,14],[50,2,50,5],[50,6,50,9],[50,10,50,14],[51,2,51,5],[51,6,51,9],[51,10,51,14],[52,2,52,5],[52,6,52,9],[52,10,52,14],[53,2,53,5],[53,6,53,9],[53,10,53,14],[54,2,54,5],[54,6,54,9],[54,10,54,14]]}
[]
[null,"      REGRESAR"]
[]
[]
[null,null,null,null,"MACROPROCESO ESTRATÉGICO",null,null,null,null,null,null,null,"CÓDIGO: ESGr027"]
[null,null,null,null,"PROCESO GESTIÓN SISTEMAS INTEGRADOS",null,null,null,null,null,null,null,"VERSIÓN: 8"]
[null,null,null,null,"MATRIZ DE MEDICIÓN Y SEGUIMIENTO A LOS PROCESOS DE GESTIÓN",null,null,null,null,null,null,null,"VIGENCIA: 2023-07-28"]
[null,null,null,null,null,null,null,null,null,null,null,null,"PÁGINA: 3 de 8"]
[]
[null,null,"FICHA DE INDICADOR"]
[]
[null,null,"MACROPROCESO",null,"Apoyo",null,null,null,"NOMBRE DEL INDICADOR",null,"Calibración de equipo y elementos educativos de investigación"]
[null,null,"PROCESO GESTIÓN",null,"Apoyo Académico"]
[null,null,"RESPONSABLE DE MEDICIÓN",null,"Jefe de la Unidad de Apoyo Académico"]
[]
[null,null,"1. COMPORTAMIENTO DE INDICADOR"]
[null,null,"CLASIFICACIÓN DE LA MEDICIÓN",null,1,null,null,"TIPO DE INDICADOR",null,"Eficacia",null,"META ANUAL",null,1]
[null,null,"FORMULA",null,"NUMERADOR",null,"Total de equipos con calibración realizada *100",null,null,null,null,"UNIDAD DE MEDIDA",null,"Porcentual"]
[null,null,null,null,"DENOMINADOR",null,"  Total equipos validados por la Unidad de Apoyo Académico, de acuerdo a lo reportado por la Dirección de Investigación y con presupuesto asignado"]
[null,null,"TENDENCIA",null,"Positiva",null,null,"NIVEL DE SEGREGACIÓN *",null,"No Aplica",null,"ESCALA"]
[null,null,null,null,null,null,null,null,null,null,null,"Deficiente","Aceptable","Bueno","Excelente"]
[null,null,null,null,null,null,null,null,null,null,null,"0 - 60%","61% - 80%","80,1% - 100%","N/A"]
[null,null,"ORIGEN DE DATOS NUMERADOR",null,"Seguimiento Ejecución Presupuestal Apoyo Académico - Certificaciones de Calibración",null,null,"FRECUENCIA DE LA MEDICIÓN",null,"SEMESTRAL",null,"FRECUENCIA DE RESULTADO",null,"ANUAL"]
[null,null,"ORIGEN DE DATOS DENOMINADOR",null,"Seguimiento Ejecución Presupuestal Apoyo Académico - Reporte base de datos"]
[]
[null,null,"RESULTADOS"]
[null,null,null,null,null,null,null,null,null,"ANÁLISIS DE DATOS"]
[null,null,null,null,null,null,null,null,null,"I SEMESTRE: Desde la Unidad de Apoyo Académico y en colaboración con la gestora de metrología de la Universidad de Cundinamarca, se realizó la verificación de los 24 equipos reportados por la dirección de investigación para su calibración. A través de este procedimiento, se determinaron los parámetros de calibración de cada uno de los elementos y de esta menra ganratizar que durnate la ejecución del proceso contractual, se lleve a cabo la calibración de acuerdo a las necesidades de los gestores investigadores de la Universidad de Cundinamarca. Actualmente, estamos en la fase de recepción de cotizaciones bajo el identificador F-CD-140.\n\nII SEMESTRE: Durante el segundo semestre de 2024, mediante la Orden Contractual F-OCS-103, se aseguró la calibración integral de todos los elementos reportados por los gestores del conocimiento (Investigadores), alcanzando una calibración al 100% de los equipos reportados. Esto permitió cumplir de manera efectiva con el indicador establecido, garantizando la precisión y fiabilidad de los datos requeridos ara los procesos de Investigación de la Universidad de Cundinamarca. "]
[null,null,null,null,null,null,null,null,null,"ACCIÓN FORMULADA"]
[null,null,null,null,null,null,null,null,null,"I SEMESTRE: Desde la Unidad de Apoyo Académico, se han implementado estrategias para agilizar los tiempos de reporte e inicio del proceso contractual de calibración de equipos de investigación. No obstante, durante 2024, se registraron retrasos debido a demoras en la contratación del profesional en metrología. Además, la supervisión del contrato del mencionado profesional está bajo la responsabilidad de la jefatura de Apoyo Académico, con el objetivo de asegurar el cumplimiento de los controles establecidos para la calibración de los equipos \n\nII SEMESTRE: Para asegurar el cumplimiento de la meta, la Unidad de Apoyo Académico colaboró estrechamente con la Dirección de Investigación y el profesional encargado de Metrología de la Universidad de Cundinamarca; logrando de esta manera verificar los parámetros y mediciones necesarias para garantizar la efectividad de las calibraciones realizadas."]
[]
[]
[]
[]
[]
[null,null,null,null,null,null,null,null,null,"RESPONSABLE "]
[null,null,null,null,null,null,null,null,null,{"$f":"E14","v":"Jefe de la Unidad de Apoyo Académico"}]
[]
[]
[null,null,"PERIODO DE EVALUACIÓN"]
[null,null,"MES",{"$f":"IF(J23=\"MENSUAL\",\"ENERO\",IF(J23=\"TRIMESTRAL\",\"MARZO\",IF(J23=\"SEMESTRAL\",\"JUNIO\",IF(J23=\"ANUAL\",YEAR(TODAY()),\"\"))))","v":"JUNIO"},{"$f":"IF(J23=\"MENSUAL\",\"FEBRERO\",IF(J23=\"TRIMESTRAL\",\"JUNIO\",IF(J23=\"SEMESTRAL\",\"DICIEMBRE\",\"\")))","v":"DICIEMBRE"},{"$f":"IF(J23=\"MENSUAL\",\"MARZO\",IF(J23=\"TRIMESTRAL\",\"SEPTIEMBRE\",\"\"))","v":""},{"$f":"IF(J23=\"MENSUAL\",\"ABRIL\",IF(J23=\"TRIMESTRAL\",\"DICIEMBRE\",\"\"))","v":""},{"$f":"IF(J23=\"MENSUAL\",\"MAYO\",\"\")","v":""},{"$f":"IF(J23=\"MENSUAL\",\"JUNIO\",\"\")","v":""},{"$f":"IF(J23=\"MENSUAL\",\"JULIO\",\"\")","v":""},{"$f":"IF(J23=\"MENSUAL\",\"AGOSTO\",\"\")","v":""},{"$f":"IF(J23=\"MENSUAL\",\"SEPTIEMBRE\",\"\")","v":""},{"$f":"IF(J23=\"MENSUAL\",\"OCTUBRE\",\"\")","v":""},{"$f":"IF(J23=\"MENSUAL\",\"NOVIEMBRE\",\"\")","v":""},{"$f":"IF(J23=\"MENSUAL\",\"DICIEMBRE\",\"\")","v":""}]
[null,null,{"$f":"G18","v":"Total de equipos con calibración realizada *100"},0,24]
[null,null,{"$f":"G19","v":"  Total equipos validados por la Unidad de Apoyo Académico, de acuerdo a lo reportado por la Dirección de Investigación y con presupuesto asignado"},24,24]
[null,null,"VALOR ",{"$f":"IFERROR(IF($E$17=1,D42/D43,IF($E$17=2,D42,\"\")),\"\")","v":0},1,"","","","","","","","","",""]
[null,null,"META PONDERADA",{"$f":"IF(AND(N23=\"ANUAL\",J23=\"MENSUAL\"),N17/12,IF(AND(N23=\"ANUAL\",J23=\"TRIMESTRAL\"),N17/4,IF(AND(N23=\"ANUAL\",J23=\"SEMESTRAL\"),N17/2,IF(AND(N23=\"ANUAL\",J23=\"ANUAL\"),N17,IF(AND(N23=\"SEMESTRAL\",J23=\"MENSUAL\"),N17/6,IF(AND(N23=\"SEMESTRAL\",J23=\"TRIMESTRAL\"),N17/2,IF(AND(N23=\"SEMESTRAL\",J23=\"SEMESTRAL\"),N17,IF(AND(N23=\"SEMESTRAL\",J23=\"ANUAL\"),\"REVISAR FRECUENCIAS\",IF(AND(N23=\"TRIMESTRAL\",J23=\"MENSUAL\"),N17/3,IF(AND(N23=\"TRIMESTRAL\",J23=\"TRIMESTRAL\"),N17,IF(AND(N23=\"TRIMESTRAL\",J23=\"SEMESTRAL\"),\"REVISAR FRECUENCIAS\",IF(AND(N23=\"TRIMESTRAL\",J23=\"ANUAL\"),\"REVISAR FRECUENCIAS\",IF(AND(N23=\"MENSUAL\",J23=\"MENSUAL\"),N17,IF(AND(N23=\"MENSUAL\",J23=\"TRIMESTRAL\"),\"REVISAR FRECUENCIAS\",IF(AND(N23=\"MENSUAL\",J23=\"SEMESTRAL\"),\"REVISAR FRECUENCIAS\",IF(AND(N23=\"MENSUAL\",J23=\"ANUAL\"),\"REVISAR FRECUENCIAS\",\"\"))))))))))))))))","v":0.5},{"$f":"IF(AND(N23=\"ANUAL\",J23=\"MENSUAL\"),N17/12+D45,IF(AND(N23=\"ANUAL\",J23=\"TRIMESTRAL\"),N17/4+D45,IF(AND(N23=\"ANUAL\",J23=\"SEMESTRAL\"),N17/2+D45,IF(AND(N23=\"SEMESTRAL\",J23=\"MENSUAL\"),N17/6+D45,IF(AND(N23=\"SEMESTRAL\",J23=\"TRIMESTRAL\"),N17/2+D45,IF(AND(N23=\"SEMESTRAL\",J23=\"SEMESTRAL\"),N17,IF(AND(N23=\"TRIMESTRAL\",J23=\"MENSUAL\"),N17/3+D45,IF(AND(N23=\"TRIMESTRAL\",J23=\"TRIMESTRAL\"),N17,IF(AND(N23=\"MENSUAL\",J23=\"MENSUAL\"),N17,\"\")))))))))","v":1},{"$f":"IF(AND(N23=\"ANUAL\",J23=\"MENSUAL\"),N17/12+E45,IF(AND(N23=\"ANUAL\",J23=\"TRIMESTRAL\"),N17/4+E45,IF(AND(N23=\"SEMESTRAL\",J23=\"MENSUAL\"),N17/6+E45,IF(AND(N23=\"SEMESTRAL\",J23=\"TRIMESTRAL\"),N17/2,IF(AND(N23=\"TRIMESTRAL\",J23=\"MENSUAL\"),N17/3+E45,IF(AND(N23=\"TRIMESTRAL\",J23=\"TRIMESTRAL\"),N17,IF(AND(N23=\"MENSUAL\",J23=\"MENSUAL\"),N17,\"\")))))))","v":""},{"$f":"IF(AND(N23=\"ANUAL\",J23=\"MENSUAL\"),N17/12+F45,IF(AND(N23=\"ANUAL\",J23=\"TRIMESTRAL\"),N17/4+F45,IF(AND(N23=\"SEMESTRAL\",J23=\"MENSUAL\"),N17/6+F45,IF(AND(N23=\"SEMESTRAL\",J23=\"TRIMESTRAL\"),N17/2+F45,IF(AND(N23=\"TRIMESTRAL\",J23=\"MENSUAL\"),N17/3,IF(AND(N23=\"TRIMESTRAL\",J23=\"TRIMESTRAL\"),N17,IF(AND(N23=\"MENSUAL\",J23=\"MENSUAL\"),N17,\"\")))))))","v":""},{"$f":"IF(AND($N$23=\"ANUAL\",$J$23=\"MENSUAL\"),$N$17/12+G45,IF(AND(N23=\"SEMESTRAL\",J23=\"MENSUAL\"),N17/6+G45,IF(AND(N23=\"TRIMESTRAL\",J23=\"MENSUAL\"),N17/3+G45,IF(AND(N23=\"MENSUAL\",J23=\"MENSUAL\"),N17,\"\"))))","v":""},{"$f":"IF(AND($N$23=\"ANUAL\",$J$23=\"MENSUAL\"),$N$17/12+H45,IF(AND(N23=\"SEMESTRAL\",J23=\"MENSUAL\"),N17/6+H45,IF(AND(N23=\"TRIMESTRAL\",J23=\"MENSUAL\"),N17/3+H45,IF(AND(N23=\"MENSUAL\",J23=\"MENSUAL\"),N17,\"\"))))","v":""},{"$f":"IF(AND($N$23=\"ANUAL\",$J$23=\"MENSUAL\"),$N$17/12+I45,IF(AND(N23=\"SEMESTRAL\",J23=\"MENSUAL\"),N17/6,IF(AND(N23=\"TRIMESTRAL\",J23=\"MENSUAL\"),N17/3,IF(AND(N23=\"MENSUAL\",J23=\"MENSUAL\"),N17,\"\"))))","v":""},{"$f":"IF(AND($N$23=\"ANUAL\",$J$23=\"MENSUAL\"),$N$17/12+J45,IF(AND(N23=\"SEMESTRAL\",J23=\"MENSUAL\"),N17/6+J45,IF(AND(N23=\"TRIMESTRAL\",J23=\"MENSUAL\"),N17/3+J45,IF(AND(N23=\"MENSUAL\",J23=\"MENSUAL\"),N17,\"\"))))","v":""},{"$f":"IF(AND($N$23=\"ANUAL\",$J$23=\"MENSUAL\"),$N$17/12+K45,IF(AND(N23=\"SEMESTRAL\",J23=\"MENSUAL\"),N17/6+K45,IF(AND(N23=\"TRIMESTRAL\",J23=\"MENSUAL\"),N17/3+K45,IF(AND(N23=\"MENSUAL\",J23=\"MENSUAL\"),N17,\"\"))))","v":""},{"$f":"IF(AND($N$23=\"ANUAL\",$J$23=\"MENSUAL\"),$N$17/12+L45,IF(AND(N23=\"SEMESTRAL\",J23=\"MENSUAL\"),N17/6+L45,IF(AND(N23=\"TRIMESTRAL\",J23=\"MENSUAL\"),N17/3,IF(AND(N23=\"MENSUAL\",J23=\"MENSUAL\"),N17,\"\"))))","v":""},{"$f":"IF(AND($N$23=\"ANUAL\",$J$23=\"MENSUAL\"),$N$17/12+M45,IF(AND(N23=\"SEMESTRAL\",J23=\"MENSUAL\"),N17/6+M45,IF(AND(N23=\"TRIMESTRAL\",J23=\"MENSUAL\"),N17/3+M45,IF(AND(N23=\"MENSUAL\",J23=\"MENSUAL\"),N17,\"\"))))","v":""},{"$f":"IF(AND($N$23=\"ANUAL\",$J$23=\"MENSUAL\"),$N$17/12+N45,IF(AND(N23=\"SEMESTRAL\",J23=\"MENSUAL\"),N17/6+N45,IF(AND(N23=\"TRIMESTRAL\",J23=\"MENSUAL\"),N17/3+N45,IF(AND(N23=\"MENSUAL\",J23=\"MENSUAL\"),N17,\"\"))))","v":""}]
[]
[null,null,"NIVEL DE SEGREGACIÓN *"]
[null,null,"UNIDAD SEGREGADA (Ej. Facultad, Programa Académico, Área)",null,null,null,"RESULTADO",null,null,null,"ANALISIS DE DATOS SEGREGADO"]
[]
[]
[]
[]
[]
[]
[]
[]
[]
[]
[]
[]
[]
[]
[]
[]
[]
[]
[null,null,null,null,null,null,"Estratégico",null,null,"Eficacia"]
[null,null,null,null,null,null,"Misional",null,null,"Eficiencia"]
[null,null,null,null,null,null,"Apoyo",null,null,"Acreditación"]
[null,null,null,null,null,null,"Seguimiento, Medición, Análisis y Evaluación",null,null,"Positiva"]
[null,null,null,null,null,null,"Direccionamiento Estratégico",null,null,"Negativa"]
[null,null,null,null,null,null,"Planeación Institucional",null,null,"Por Unidad Regional"]
[null,null,null,null,null,null,"Proyectos Especiales y Relaciones Interinstitucionales",null,null,"Por Facultad"]
[null,null,null,null,null,null,"Sistemas Integrados",null,null,"Por Programa Académico"]
[null,null,null,null,null,null,"Autoevaluación y Acreditación",null,null,"Por área"]
[null,null,null,null,null,null,"Comunicaciones",null,null,"Por Laboratorio"]
[null,null,null,null,null,null,"Formación y Aprendizaje",null,null,"Otros"]
[null,null,null,null,null,null,"Ciencia, Tecnología e Innovación",null,null,"No Aplica"]
[null,null,null,null,null,null,"Interacción Social Universitaria"]
[null,null,null,null,null,null,"Bienestar Universitario"]
[null,null,null,null,null,null,"Admisiones y Registro"]
[null,null,null,null,null,null,"Graduados"]
[null,null,null,null,null,null,"Dialogando con el Mundo"]
[null,null,null,null,null,null,"Talento Humano"]
[null,null,null,null,null,null,"Jurídica"]
[null,null,null,null,null,null,"Financiera"]
[null,null,null,null,null,null,"Sistemas y Tecnología"]
[null,null,null,null,null,null,"Bienes y Servicios"]
[null,null,null,null,null,null,"Documental"]
[null,null,null,null,null,null,"Apoyo Académico"]
[null,null,null,null,null,null,"Control Interno"]
[null,null,null,null,null,null,"Control Disciplinario"]
[null,null,null,null,null,null,"Servicio de Atención al Ciudadano"]

{"sheet":"AAA-5","index":3,"n_rows":99,"n_cols":15,"rows_kept":99,"cut":false,"hidden":false,"merged":[[58,2,58,5],[58,6,58,9],[58,10,58,14],[1,1,3,2],[4,2,7,3],[4,4,4,11],[4,12,4,14],[5,4,5,11],[5,12,5,14],[6,4,7,11],[6,12,6,14],[7,12,7,14],[15,2,15,14],[8,2,8,14],[9,2,10,14],[11,2,11,3],[11,4,11,7],[11,8,11,9],[11,10,11,14],[12,2,12,3],[12,4,12,14],[13,2,13,3],[13,4,13,14],[14,2,14,14],[16,15,17,15],[17,2,18,3],[17,4,17,5],[17,6,17,10],[17,11,18,12],[17,13,18,14],[18,4,18,5],[18,6,18,10],[16,2,16,3],[16,4,16,6],[16,7,16,8],[16,9,16,10],[16,11,16,12],[16,13,16,14],[19,2,21,3],[19,4,21,6],[19,7,21,8],[19,9,21,10],[19,11,19,14],[22,13,23,14],[23,2,23,3],[23,4,23,6],[25,2,25,14],[26,2,42,8],[26,9,26,14],[42,9,42,14],[22,2,22,3],[22,4,22,6],[22,7,23,8],[22,9,23,10],[22,11,23,12],[53,2,53,5],[53,6,53,9],[53,10,53,14],[26,15,27,15],[27,9,32,14],[33,9,33,14],[34,9,39,14],[40,9,40,14],[41,9,41,14],[44,2,44,14],[51,2,51,14],[52,2,52,5],[52,6,52,9],[52,10,52,14],[54,2,54,5],[54,6,54,9],[54,10,54,14],[55,2,55,5],[55,6,55,9],[55,10,55,14],[56,2,56,5],[56,6,56,9],[56,10,56,14],[57,2,57,5],[57,6,57,9],[57,10,57,14],[59,2,59,5],[59,6,59,9],[59,10,59,14],[60,2,60,5],[60,6,60,9],[60,10,60,14]]}
[]
[null,"      REGRESAR"]
[]
[]
[null,null,null,null,"MACROPROCESO ESTRATÉGICO",null,null,null,null,null,null,null,"CÓDIGO: ESGr027"]
[null,null,null,null,"PROCESO GESTIÓN SISTEMAS INTEGRADOS",null,null,null,null,null,null,null,"VERSIÓN: 8"]
[null,null,null,null,"MATRIZ DE MEDICIÓN Y SEGUIMIENTO A LOS PROCESOS DE GESTIÓN",null,null,null,null,null,null,null,"VIGENCIA: 2023-07-28"]
[null,null,null,null,null,null,null,null,null,null,null,null,"PÁGINA: 4 de 8"]
[]
[null,null,"FICHA DE INDICADOR"]
[]
[null,null,"MACROPROCESO",null,"Apoyo",null,null,null,"NOMBRE DEL INDICADOR",null,"Mantenimiento a Elementos Educativos"]
[null,null,"PROCESO GESTIÓN",null,"Apoyo Académico"]
[null,null,"RESPONSABLE DE MEDICIÓN",null,"Jefe de la Unidad de Apoyo Académico"]
[]
[null,null,"1. COMPORTAMIENTO DE INDICADOR"]
[null,null,"CLASIFICACIÓN DE LA MEDICIÓN",null,1,null,null,"TIPO DE INDICADOR",null,"Eficacia",null,"META ANUAL",null,1]
[null,null,"FORMULA",null,"NUMERADOR",null," Total de Elementos Educativos Con Mantenimiento Realizado *100",null,null,null,null,"UNIDAD DE MEDIDA",null,"Porcentual"]
[null,null,null,null,"DENOMINADOR",null," Total de Elementos Educativos que Requieren Mantenimiento de acuerdo a Priorización"]
[null,null,"TENDENCIA",null,"Positiva",null,null,"NIVEL DE SEGREGACIÓN *",null,"Por Unidad Regional",null,"ESCALA"]
[null,null,null,null,null,null,null,null,null,null,null,"Deficiente","Aceptable","Bueno","Excelente"]
[null,null,null,null,null,null,null,null,null,null,null,"0 < 60%","60% - 80%","80,1%  - 100%","N/A"]
[null,null,"ORIGEN DE DATOS NUMERADOR",null,"Seguimiento Ejecución Presupuestal Apoyo Académico",null,null,"FRECUENCIA DE LA MEDICIÓN",null,"SEMESTRAL",null,"FRECUENCIA DE RESULTADO",null,"ANUAL"]
[null,null,"ORIGEN DE DATOS DENOMINADOR",null,"Seguimiento Ejecución Presupuestal Apoyo Académico - formato AAAF054"]
[]
[null,null,"RESULTADOS"]
[null,null,null,null,null,null,null,null,null,"ANÁLISIS DE DATOS"]
[null,null,null,null,null,null,null,null,null,"I SEMESTRE: Para el año 2024 se llevó a cabo la reasignación de los recursos y responsabilidades correspondiente a la ejecución de los mantenimientos a elementos educativos, siendo esta una gestión realizada por la Unidad de Apoyo Académico en la sede Fusagasugá y por los Directores Administrativos en las Unidades Regionales. \n En el 2024 se tiene proyectada la ejecución de los mantenimientos preventivos y correctivos a 1001 equipos de todas las Unidades Regionales de la Universidad de Cundinamarca \nPara el primer periodo del 2024 se llevó a cabo el mantenimiento preventivo y correctivo a 249 equipos correspondientes a:\n- Contratar el servicio de mantenimiento preventivo y correctivo a los equipos de los laboratorios topográficos de la sede Fusagasugá\n- Contratar el mantenimiento preventivo y correctivo de los equipos de los laboratorios de telemática, electrónica y ciencias básicas de la universidad de Cundinamarca sede Fusagasugá\n- Contratar el servicio de mantenimiento para el equipo de ordeño de la unidad agroambiental la esperanza de la sede Fusagasugá de la universidad de Cundinamarca.\n- Contratar el mantenimiento correctivo y preventivo de los recursos tecnológicos de los centros de cómputo de la extensión de chía de la universidad de Cundinamarca.\nY se tiene en proceso de revisión cooperativa los proceso de: \n- Contratar el servicio de mantenimiento preventivo y/o correctivo de microscopios y estereoscopios de los laboratorios de ciencias agropecuarias de la universidad de Cundinamarca, extensión Facatativá.\n- Contratar el servicio de mantenimiento preventivo y correctivo a los instrumentos musicales de la extensión Zipaquirá de la universidad de Cundinamarca vigencia 2024\n- Mantenimiento preventivo y correctivo de los equipos (pantallas interactivas y televisores) del centro de recursos educativos extensión Facatativá de la universidad de Cundinamarca.\n- Contratar el servicio de mantenimiento para los equipos del laboratorio de biología, física y química de la extensión Soacha\n\nPara el segundo semestre del año 2024 se tiene proyectado llevar a cabo la ejecución de los equipos restantes solicitados, con el fin de garantizar la ejecución al 100% de los elementos reportados para mantenimiento. \n\nII SEMESTRE: Durante el segundo semestre de 2024, se llevó a realizó el proceso de mantenimiento de un total de 881 equipos pertenecientes a la Unidad de Apoyo Académico, distribuidos en las diferentes unidades regionales de la Universidad de Cundinamarca. Estos equipos incluyen balanzas, elementos de gimnasio, autoclaves, equipos agrícolas, ópticos, entre otros. Los 881 equipos corresponden al 78% del total reportado para el semestre, alcanzando así una meta ponderada del 87% en cuanto al total de equipos reportados a la Unidad de Apoyo Académico y sometidos a mantenimiento durante este 2024. Este resultado refleja un desempeño positivo en el cumplimiento de los objetivos de la Unidad de Apoyo Académico"]
[]
[]
[]
[]
[]
[null,null,null,null,null,null,null,null,null,"ACCIÓN FORMULADA"]
[null,null,null,null,null,null,null,null,null,"I SEMESTRE: Desde la implementación de las nuevas directrices a partir del IPA 2024, la Unidad de Apoyo Académico ha desarrollado diversas estrategias para agilizar la gestión de mantenimientos, colaborando estrechamente con los directores administrativos para garantizar el eficiente cumplimiento del indicador de gestión.\n Sin embargo, en algunos casos, estos procesos experimentan demoras en la contratación debido a la complejidad en la obtención de cotizaciones y a la falta de respuesta por parte de los oferentes al momento de publicar las ofertas; lo cual genera demoras en el proceso \n\nII SEMESTRE: Para garantizar la ejecución de los mantenimientos durante 2024, se estableció una colaboración en conjunto con los directores administrativos y los gestores responsables de los procesos de cada unidad regional. Se implementaron mesas de trabajo con el objetivo de verificar los proceso y asegurar el correcto registro y cargue de los elementos requeridos para mantenimiento a lo largo del año."]
[]
[]
[]
[]
[]
[null,null,null,null,null,null,null,null,null,"RESPONSABLE "]
[null,null,null,null,null,null,null,null,null,{"$f":"E14","v":"Jefe de la Unidad de Apoyo Académico"}]
[]
[]
[null,null,"PERIODO DE EVALUACIÓN"]
[null,null,"MES",{"$f":"IF(J23=\"MENSUAL\",\"ENERO\",IF(J23=\"TRIMESTRAL\",\"MARZO\",IF(J23=\"SEMESTRAL\",\"JUNIO\",IF(J23=\"ANUAL\",YEAR(TODAY()),\"\"))))","v":"JUNIO"},{"$f":"IF(J23=\"MENSUAL\",\"FEBRERO\",IF(J23=\"TRIMESTRAL\",\"JUNIO\",IF(J23=\"SEMESTRAL\",\"DICIEMBRE\",\"\")))","v":"DICIEMBRE"},{"$f":"IF(J23=\"MENSUAL\",\"MARZO\",IF(J23=\"TRIMESTRAL\",\"SEPTIEMBRE\",\"\"))","v":""},{"$f":"IF(J23=\"MENSUAL\",\"ABRIL\",IF(J23=\"TRIMESTRAL\",\"DICIEMBRE\",\"\"))","v":""},{"$f":"IF(J23=\"MENSUAL\",\"MAYO\",\"\")","v":""},{"$f":"IF(J23=\"MENSUAL\",\"JUNIO\",\"\")","v":""},{"$f":"IF(J23=\"MENSUAL\",\"JULIO\",\"\")","v":""},{"$f":"IF(J23=\"MENSUAL\",\"AGOSTO\",\"\")","v":""},{"$f":"IF(J23=\"MENSUAL\",\"SEPTIEMBRE\",\"\")","v":""},{"$f":"IF(J23=\"MENSUAL\",\"OCTUBRE\",\"\")","v":""},{"$f":"IF(J23=\"MENSUAL\",\"NOVIEMBRE\",\"\")","v":""},{"$f":"IF(J23=\"MENSUAL\",\"DICIEMBRE\",\"\")","v":""}]
[null,null,{"$f":"G18","v":" Total de Elementos Educativos Con Mantenimiento Realizado *100"},249,1130]
[null,null,{"$f":"G19","v":" Total de Elementos Educativos que Requieren Mantenimiento de acuerdo a Priorización"},1135,1135]
[null,null,"VALOR ",{"$f":"IFERROR(IF($E$17=1,D47/D48,IF($E$17=2,D47,\"\")),\"\")","v":0.21938325991189428},{"$f":"IFERROR(IF($E$17=1,E47/E48,IF($E$17=2,E47,\"\")),\"\")","v":0.99559471365638763},"","","","","","","","","",""]
[null,null,"META PONDERADA",{"$f":"IF(AND(N23=\"ANUAL\",J23=\"MENSUAL\"),N17/12,IF(AND(N23=\"ANUAL\",J23=\"TRIMESTRAL\"),N17/4,IF(AND(N23=\"ANUAL\",J23=\"SEMESTRAL\"),N17/2,IF(AND(N23=\"ANUAL\",J23=\"ANUAL\"),N17,IF(AND(N23=\"SEMESTRAL\",J23=\"MENSUAL\"),N17/6,IF(AND(N23=\"SEMESTRAL\",J23=\"TRIMESTRAL\"),N17/2,IF(AND(N23=\"SEMESTRAL\",J23=\"SEMESTRAL\"),N17,IF(AND(N23=\"SEMESTRAL\",J23=\"ANUAL\"),\"REVISAR FRECUENCIAS\",IF(AND(N23=\"TRIMESTRAL\",J23=\"MENSUAL\"),N17/3,IF(AND(N23=\"TRIMESTRAL\",J23=\"TRIMESTRAL\"),N17,IF(AND(N23=\"TRIMESTRAL\",J23=\"SEMESTRAL\"),\"REVISAR FRECUENCIAS\",IF(AND(N23=\"TRIMESTRAL\",J23=\"ANUAL\"),\"REVISAR FRECUENCIAS\",IF(AND(N23=\"MENSUAL\",J23=\"MENSUAL\"),N17,IF(AND(N23=\"MENSUAL\",J23=\"TRIMESTRAL\"),\"REVISAR FRECUENCIAS\",IF(AND(N23=\"MENSUAL\",J23=\"SEMESTRAL\"),\"REVISAR FRECUENCIAS\",IF(AND(N23=\"MENSUAL\",J23=\"ANUAL\"),\"REVISAR FRECUENCIAS\",\"\"))))))))))))))))","v":0.5},{"$f":"IF(AND(N23=\"ANUAL\",J23=\"MENSUAL\"),N17/12+D50,IF(AND(N23=\"ANUAL\",J23=\"TRIMESTRAL\"),N17/4+D50,IF(AND(N23=\"ANUAL\",J23=\"SEMESTRAL\"),N17/2+D50,IF(AND(N23=\"SEMESTRAL\",J23=\"MENSUAL\"),N17/6+D50,IF(AND(N23=\"SEMESTRAL\",J23=\"TRIMESTRAL\"),N17/2+D50,IF(AND(N23=\"SEMESTRAL\",J23=\"SEMESTRAL\"),N17,IF(AND(N23=\"TRIMESTRAL\",J23=\"MENSUAL\"),N17/3+D50,IF(AND(N23=\"TRIMESTRAL\",J23=\"TRIMESTRAL\"),N17,IF(AND(N23=\"MENSUAL\",J23=\"MENSUAL\"),N17,\"\")))))))))","v":1},{"$f":"IF(AND(N23=\"ANUAL\",J23=\"MENSUAL\"),N17/12+E50,IF(AND(N23=\"ANUAL\",J23=\"TRIMESTRAL\"),N17/4+E50,IF(AND(N23=\"SEMESTRAL\",J23=\"MENSUAL\"),N17/6+E50,IF(AND(N23=\"SEMESTRAL\",J23=\"TRIMESTRAL\"),N17/2,IF(AND(N23=\"TRIMESTRAL\",J23=\"MENSUAL\"),N17/3+E50,IF(AND(N23=\"TRIMESTRAL\",J23=\"TRIMESTRAL\"),N17,IF(AND(N23=\"MENSUAL\",J23=\"MENSUAL\"),N17,\"\")))))))","v":""},{"$f":"IF(AND(N23=\"ANUAL\",J23=\"MENSUAL\"),N17/12+F50,IF(AND(N23=\"ANUAL\",J23=\"TRIMESTRAL\"),N17/4+F50,IF(AND(N23=\"SEMESTRAL\",J23=\"MENSUAL\"),N17/6+F50,IF(AND(N23=\"SEMESTRAL\",J23=\"TRIMESTRAL\"),N17/2+F50,IF(AND(N23=\"TRIMESTRAL\",J23=\"MENSUAL\"),N17/3,IF(AND(N23=\"TRIMESTRAL\",J23=\"TRIMESTRAL\"),N17,IF(AND(N23=\"MENSUAL\",J23=\"MENSUAL\"),N17,\"\")))))))","v":""},{"$f":"IF(AND($N$23=\"ANUAL\",$J$23=\"MENSUAL\"),$N$17/12+G50,IF(AND(N23=\"SEMESTRAL\",J23=\"MENSUAL\"),N17/6+G50,IF(AND(N23=\"TRIMESTRAL\",J23=\"MENSUAL\"),N17/3+G50,IF(AND(N23=\"MENSUAL\",J23=\"MENSUAL\"),N17,\"\"))))","v":""},{"$f":"IF(AND($N$23=\"ANUAL\",$J$23=\"MENSUAL\"),$N$17/12+H50,IF(AND(N23=\"SEMESTRAL\",J23=\"MENSUAL\"),N17/6+H50,IF(AND(N23=\"TRIMESTRAL\",J23=\"MENSUAL\"),N17/3+H50,IF(AND(N23=\"MENSUAL\",J23=\"MENSUAL\"),N17,\"\"))))","v":""},{"$f":"IF(AND($N$23=\"ANUAL\",$J$23=\"MENSUAL\"),$N$17/12+I50,IF(AND(N23=\"SEMESTRAL\",J23=\"MENSUAL\"),N17/6,IF(AND(N23=\"TRIMESTRAL\",J23=\"MENSUAL\"),N17/3,IF(AND(N23=\"MENSUAL\",J23=\"MENSUAL\"),N17,\"\"))))","v":""},{"$f":"IF(AND($N$23=\"ANUAL\",$J$23=\"MENSUAL\"),$N$17/12+J50,IF(AND(N23=\"SEMESTRAL\",J23=\"MENSUAL\"),N17/6+J50,IF(AND(N23=\"TRIMESTRAL\",J23=\"MENSUAL\"),N17/3+J50,IF(AND(N23=\"MENSUAL\",J23=\"MENSUAL\"),N17,\"\"))))","v":""},{"$f":"IF(AND($N$23=\"ANUAL\",$J$23=\"MENSUAL\"),$N$17/12+K50,IF(AND(N23=\"SEMESTRAL\",J23=\"MENSUAL\"),N17/6+K50,IF(AND(N23=\"TRIMESTRAL\",J23=\"MENSUAL\"),N17/3+K50,IF(AND(N23=\"MENSUAL\",J23=\"MENSUAL\"),N17,\"\"))))","v":""},{"$f":"IF(AND($N$23=\"ANUAL\",$J$23=\"MENSUAL\"),$N$17/12+L50,IF(AND(N23=\"SEMESTRAL\",J23=\"MENSUAL\"),N17/6+L50,IF(AND(N23=\"TRIMESTRAL\",J23=\"MENSUAL\"),N17/3,IF(AND(N23=\"MENSUAL\",J23=\"MENSUAL\"),N17,\"\"))))","v":""},{"$f":"IF(AND($N$23=\"ANUAL\",$J$23=\"MENSUAL\"),$N$17/12+M50,IF(AND(N23=\"SEMESTRAL\",J23=\"MENSUAL\"),N17/6+M50,IF(AND(N23=\"TRIMESTRAL\",J23=\"MENSUAL\"),N17/3+M50,IF(AND(N23=\"MENSUAL\",J23=\"MENSUAL\"),N17,\"\"))))","v":""},{"$f":"IF(AND($N$23=\"ANUAL\",$J$23=\"MENSUAL\"),$N$17/12+N50,IF(AND(N23=\"SEMESTRAL\",J23=\"MENSUAL\"),N17/6+N50,IF(AND(N23=\"TRIMESTRAL\",J23=\"MENSUAL\"),N17/3+N50,IF(AND(N23=\"MENSUAL\",J23=\"MENSUAL\"),N17,\"\"))))","v":""}]
[]
[null,null,"NIVEL DE SEGREGACIÓN *"]
[null,null,"UNIDAD SEGREGADA (Ej. Facultad, Programa Académico, Área)",null,null,null,"RESULTADO",null,null,null,"ANALISIS DE DATOS SEGREGADO"]
[null,null,"Sede Fusagasugá",null,null,null,0.51100000000000001,null,null,null,"La sede Fusagasugá realizó un total de 450 mantenimientos"]
[null,null,"Seccional Girardot",null,null,null,7.0000000000000007E-2,null,null,null,"Seccional Girardot se realizaron un total de 62 mantenimientos "]
[null,null,"Seccional Ubaté",null,null,null,2.8000000000000001E-2,null,null,null,"Seccional Ubaté se realizaron un total 25 mantenimientos "]
[null,null,"Extensión Chía",null,null,null,7.3999999999999996E-2,null,null,null,"Extensión Chía se realizaron un total 65 manteamientos "]
[null,null,"Extensión Facatativá",null,null,null,0.186,null,null,null,"Extensión Facatativá realizó un total de 164 mantenimientos "]
[null,null,"Extensión Soacha",null,null,null,1.6E-2,null,null,null,"Extensión Soacha realizó un total de 14 mantenimientos "]
[null,null,"Extensión Zipaquirá",null,null,null,0.115,null,null,null,"Extensión Zipaquirá se llevaron a cabo un total 101 mantenimientos "]
[]
[]
[]
[]
[]
[]
[]
[]
[]
[]
[]
[]
[null,null,null,null,null,null,"Estratégico",null,null,"Eficacia"]
[null,null,null,null,null,null,"Misional",null,null,"Eficiencia"]
[null,null,null,null,null,null,"Apoyo",null,null,"Acreditación"]
[null,null,null,null,null,null,"Seguimiento, Medición, Análisis y Evaluación",null,null,"Positiva"]
[null,null,null,null,null,null,"Direccionamiento Estratégico",null,null,"Negativa"]
[null,null,null,null,null,null,"Planeación Institucional",null,null,"Por Unidad Regional"]
[null,null,null,null,null,null,"Proyectos Especiales y Relaciones Interinstitucionales",null,null,"Por Facultad"]
[null,null,null,null,null,null,"Sistemas Integrados",null,null,"Por Programa Académico"]
[null,null,null,null,null,null,"Autoevaluación y Acreditación",null,null,"Por área"]
[null,null,null,null,null,null,"Comunicaciones",null,null,"Por Laboratorio"]
[null,null,null,null,null,null,"Formación y Aprendizaje",null,null,"Otros"]
[null,null,null,null,null,null,"Ciencia, Tecnología e Innovación",null,null,"No Aplica"]
[null,null,null,null,null,null,"Interacción Social Universitaria"]
[null,null,null,null,null,null,"Bienestar Universitario"]
[null,null,null,null,null,null,"Admisiones y Registro"]
[null,null,null,null,null,null,"Graduados"]
[null,null,null,null,null,null,"Dialogando con el Mundo"]
[null,null,null,null,null,null,"Talento Humano"]
[null,null,null,null,null,null,"Jurídica"]
[null,null,null,null,null,null,"Financiera"]
[null,null,null,null,null,null,"Sistemas y Tecnología"]
[null,null,null,null,null,null,"Bienes y Servicios"]
[null,null,null,null,null,null,"Documental"]
[null,null,null,null,null,null,"Apoyo Académico"]
[null,null,null,null,null,null,"Control Interno"]
[null,null,null,null,null,null,"Control Disciplinario"]
[null,null,null,null,null,null,"Servicio de Atención al Ciudadano"]

{"sheet":"AAA-9","index":4,"n_rows":96,"n_cols":15,"rows_kept":96,"cut":false,"hidden":false,"merged":[[1,1,3,2],[4,2,7,3],[4,4,4,11],[4,12,4,14],[5,4,5,11],[5,12,5,14],[6,4,7,11],[6,12,6,14],[7,12,7,14],[15,2,15,14],[8,2,8,14],[9,2,10,14],[11,2,11,3],[11,4,11,7],[11,8,11,9],[11,10,11,14],[12,2,12,3],[12,4,12,14],[13,2,13,3],[13,4,13,14],[14,2,14,14],[16,15,17,15],[17,2,18,3],[17,4,17,5],[17,6,17,10],[17,11,18,12],[17,13,18,14],[18,4,18,5],[18,6,18,10],[16,2,16,3],[16,4,16,6],[16,7,16,8],[16,9,16,10],[16,11,16,12],[16,13,16,14],[19,2,21,3],[19,4,21,6],[19,7,21,8],[19,9,21,10],[19,11,19,14],[22,13,23,14],[23,2,23,3],[23,4,23,6],[25,2,25,14],[26,2,42,8],[26,9,26,14],[42,9,42,14],[22,2,22,3],[22,4,22,6],[22,7,23,8],[22,9,23,10],[22,11,23,12],[53,2,53,5],[53,6,53,9],[53,10,53,14],[26,15,27,15],[27,9,32,14],[33,9,33,14],[34,9,39,14],[40,9,40,14],[41,9,41,14],[44,2,44,14],[51,2,51,14],[52,2,52,5],[52,6,52,9],[52,10,52,14],[54,2,54,5],[54,6,54,9],[54,10,54,14],[55,2,55,5],[55,6,55,9],[55,10,55,14],[56,2,56,5],[56,6,56,9],[56,10,56,14],[57,2,57,5],[57,6,57,9],[57,10,57,14],[58,2,58,5],[58,6,58,9],[58,10,58,14],[59,2,59,5],[59,6,59,9],[59,10,59,14]]}
[]
[null,"      REGRESAR"]
[]
[]
[null,null,null,null,"MACROPROCESO ESTRATÉGICO",null,null,null,null,null,null,null,"CÓDIGO: ESGr027"]
[null,null,null,null,"PROCESO GESTIÓN SISTEMAS INTEGRADOS",null,null,null,null,null,null,null,"VERSIÓN: 8"]
[null,null,null,null,"MATRIZ DE MEDICIÓN Y SEGUIMIENTO A LOS PROCESOS DE GESTIÓN",null,null,null,null,null,null,null,"VIGENCIA: 2023-07-28"]
[null,null,null,null,null,null,null,null,null,null,null,null,"PÁGINA: 5 de 8"]
[]
[null,null,"FICHA DE INDICADOR"]
[]
[null,null,"MACROPROCESO",null,"Apoyo",null,null,null,"NOMBRE DEL INDICADOR",null,"Suficiencia de elementos educativos "]
[null,null,"PROCESO GESTIÓN",null,"Apoyo Académico"]
[null,null,"RESPONSABLE DE MEDICIÓN",null,"Jefe de la Unidad de Apoyo Académico"]
[]
[null,null,"1. COMPORTAMIENTO DE INDICADOR"]
[null,null,"CLASIFICACIÓN DE LA MEDICIÓN",null,1,null,null,"TIPO DE INDICADOR",null,"Acreditación",null,"META ANUAL",null,1]
[null,null,"FORMULA",null,"NUMERADOR",null,"Elementos educativos adquiridos para la academia*100",null,null,null,null,"UNIDAD DE MEDIDA",null,"Porcentual"]
[null,null,null,null,"DENOMINADOR",null," Total de elementos educativos priorizados requeridos por la academia (solicitudes vigencia anterior)"]
[null,null,"TENDENCIA",null,"Positiva",null,null,"NIVEL DE SEGREGACIÓN *",null,"Por Unidad Regional",null,"ESCALA"]
[null,null,null,null,null,null,null,null,null,null,null,"Deficiente","Aceptable","Bueno","Excelente"]
[null,null,null,null,null,null,null,null,null,null,null,"0 - 33%","34% - 67%","68% - 100%","N/A"]
[null,null,"ORIGEN DE DATOS NUMERADOR",null,"Aplicativo Apoyo Académico",null,null,"FRECUENCIA DE LA MEDICIÓN",null,"SEMESTRAL",null,"FRECUENCIA DE RESULTADO",null,"ANUAL"]
[null,null,"ORIGEN DE DATOS DENOMINADOR",null,"Aplicativo Apoyo Académico"]
[]
[null,null,"RESULTADOS"]
[null,null,null,null,null,null,null,null,null,"ANÁLISIS DE DATOS"]
[null,null,null,null,null,null,null,null,null,"\nI SEMESTRE: En 2024, se revisaron las solicitudes presentadas a través de la plataforma \"Elementos e Insumos de laboratorio\". Los gestores de la Unidad de Apoyo Académico verificaron la información proporcionada y priorizaron 1.291 solicitudes para todas las Unidades Regionales de la Universidad de Cundinamarca.\nAdemás, para el IPA 2024 se llevaron a cabo procesos contractuales para adquirir 562 elementos, como insumos químicos, equipos de laboratorio, herramientas y suministros de nitrógeno. Estos procesos se ejecutaron con el objetivo de asegurar el desarrollo eficiente de las prácticas académicas de los estudiantes de la Universidad de Cundinamarca.\n\nII SEMESTRE: Durante el proceso de contratación para la adquisición de elementos e insumos en el segundo semestre, utilizando los recursos del balance asignados a la Unidad de Apoyo Académico y a las Unidades Regionales, se logró realizar la adquisición de 782 elementos e insumos, lo que representa el 100% de los elementos solicitados y priorizados para esta vigencia. Gracias a esto, se alcanzó el 100% del cumplimiento del indicador. Este proceso garantizó que todos los espacios académicos de la Universidad de Cundinamarca contaran con los elementos e insumos necesarios para el desarrollo de las experiencias de aprendizaje.\nAdicionalmente, se realizó la adquisición de más elementos de los inicialmente priorizados, ya que durante el periodo académico surgieron necesidades no previstas en las solicitudes iniciales. Sin embargo, gracias al presupuesto asignado, fue posible realizar la compra de estos elementos adicionales, lo que permitió superar la meta establecida en el indicador."]
[]
[]
[]
[]
[]
[null,null,null,null,null,null,null,null,null,"  ACCIÓN FORMULADA"]
[null,null,null,null,null,null,null,null,null,"I SEMESTRE: Desde la Unidad de Apoyo Académico se realiza la apertura del aplicativo de solicitud de Elementos e insumos de laboratorio una vez al año se reciben las solicitudes de los gestores de espacios y los Coordinadores de Programas de la Universidad de Cundinamarca y por medio de la asignación de los recursos asignados se garantiza la compra y equipamiento de los elementos e insumos para los laboratorios de la Universidad de Cundinamarca\n\nII SEMESTRE:  Con el objetivo de garantizar la adecuada adquisición de los elementos requeridos, desde la Unidad de Apoyo Académico se habilita el aplicativo para la solicitud de elementos e insumos, en el cual se realizan seguimientos periódicos durante el tiempo de apertura. Este proceso permite que los gestores de espacios, coordinadores y gestores del conocimiento estén informados sobre la cantidad de solicitudes realizadas.\nAsimismo, para llevar a cabo la proyección presupuestal, la Unidad de Apoyo Académico remite las solicitudes priorizadas para cada Unidad Regional, acompañadas del aval de la jefatura de la oficina, con el fin de asegurar que las solicitudes sean sometidas a los procesos de contratación por parte de los Directores Administrativos.\t\nPor otro lado, en aquellos casos en los que no se asigna el presupuesto requerido, la adquisición de los elementos se realiza desde la Sede Fusagasugá. Asimismo, cuando las solicitudes no pueden realizarse dentro de los tiempos establecidos debido a factores como la apertura de nuevos programas durante el periodo académico, la Unidad de Apoyo Académico se encarga de gestionar la adquisición de dichos elementos e insumos."]
[]
[]
[]
[]
[]
[null,null,null,null,null,null,null,null,null,"RESPONSABLE "]
[null,null,null,null,null,null,null,null,null,{"$f":"E14","v":"Jefe de la Unidad de Apoyo Académico"}]
[]
[]
[null,null,"PERIODO DE EVALUACIÓN"]
[null,null,"MES",{"$f":"IF(J23=\"MENSUAL\",\"ENERO\",IF(J23=\"TRIMESTRAL\",\"MARZO\",IF(J23=\"SEMESTRAL\",\"JUNIO\",IF(J23=\"ANUAL\",YEAR(TODAY()),\"\"))))","v":"JUNIO"},{"$f":"IF(J23=\"MENSUAL\",\"FEBRERO\",IF(J23=\"TRIMESTRAL\",\"JUNIO\",IF(J23=\"SEMESTRAL\",\"DICIEMBRE\",\"\")))","v":"DICIEMBRE"},{"$f":"IF(J23=\"MENSUAL\",\"MARZO\",IF(J23=\"TRIMESTRAL\",\"SEPTIEMBRE\",\"\"))","v":""},{"$f":"IF(J23=\"MENSUAL\",\"ABRIL\",IF(J23=\"TRIMESTRAL\",\"DICIEMBRE\",\"\"))","v":""},{"$f":"IF(J23=\"MENSUAL\",\"MAYO\",\"\")","v":""},{"$f":"IF(J23=\"MENSUAL\",\"JUNIO\",\"\")","v":""},{"$f":"IF(J23=\"MENSUAL\",\"JULIO\",\"\")","v":""},{"$f":"IF(J23=\"MENSUAL\",\"AGOSTO\",\"\")","v":""},{"$f":"IF(J23=\"MENSUAL\",\"SEPTIEMBRE\",\"\")","v":""},{"$f":"IF(J23=\"MENSUAL\",\"OCTUBRE\",\"\")","v":""},{"$f":"IF(J23=\"MENSUAL\",\"NOVIEMBRE\",\"\")","v":""},{"$f":"IF(J23=\"MENSUAL\",\"DICIEMBRE\",\"\")","v":""}]
[null,null,{"$f":"G18","v":"Elementos educativos adquiridos para la academia*100"},562,1291]
[null,null,{"$f":"G19","v":" Total de elementos educativos priorizados requeridos por la academia (solicitudes vigencia anterior)"},1291,1291]
[null,null,"VALOR ",{"$f":"IFERROR(IF($E$17=1,D47/D48,IF($E$17=2,D47,\"\")),\"\")","v":0.43532145623547636},1,"","","","","","","","","",""]
[null,null,"META PONDERADA",{"$f":"IF(AND(N23=\"ANUAL\",J23=\"MENSUAL\"),N17/12,IF(AND(N23=\"ANUAL\",J23=\"TRIMESTRAL\"),N17/4,IF(AND(N23=\"ANUAL\",J23=\"SEMESTRAL\"),N17/2,IF(AND(N23=\"ANUAL\",J23=\"ANUAL\"),N17,IF(AND(N23=\"SEMESTRAL\",J23=\"MENSUAL\"),N17/6,IF(AND(N23=\"SEMESTRAL\",J23=\"TRIMESTRAL\"),N17/2,IF(AND(N23=\"SEMESTRAL\",J23=\"SEMESTRAL\"),N17,IF(AND(N23=\"SEMESTRAL\",J23=\"ANUAL\"),\"REVISAR FRECUENCIAS\",IF(AND(N23=\"TRIMESTRAL\",J23=\"MENSUAL\"),N17/3,IF(AND(N23=\"TRIMESTRAL\",J23=\"TRIMESTRAL\"),N17,IF(AND(N23=\"TRIMESTRAL\",J23=\"SEMESTRAL\"),\"REVISAR FRECUENCIAS\",IF(AND(N23=\"TRIMESTRAL\",J23=\"ANUAL\"),\"REVISAR FRECUENCIAS\",IF(AND(N23=\"MENSUAL\",J23=\"MENSUAL\"),N17,IF(AND(N23=\"MENSUAL\",J23=\"TRIMESTRAL\"),\"REVISAR FRECUENCIAS\",IF(AND(N23=\"MENSUAL\",J23=\"SEMESTRAL\"),\"REVISAR FRECUENCIAS\",IF(AND(N23=\"MENSUAL\",J23=\"ANUAL\"),\"REVISAR FRECUENCIAS\",\"\"))))))))))))))))","v":0.5},{"$f":"IF(AND(N23=\"ANUAL\",J23=\"MENSUAL\"),N17/12+D50,IF(AND(N23=\"ANUAL\",J23=\"TRIMESTRAL\"),N17/4+D50,IF(AND(N23=\"ANUAL\",J23=\"SEMESTRAL\"),N17/2+D50,IF(AND(N23=\"SEMESTRAL\",J23=\"MENSUAL\"),N17/6+D50,IF(AND(N23=\"SEMESTRAL\",J23=\"TRIMESTRAL\"),N17/2+D50,IF(AND(N23=\"SEMESTRAL\",J23=\"SEMESTRAL\"),N17,IF(AND(N23=\"TRIMESTRAL\",J23=\"MENSUAL\"),N17/3+D50,IF(AND(N23=\"TRIMESTRAL\",J23=\"TRIMESTRAL\"),N17,IF(AND(N23=\"MENSUAL\",J23=\"MENSUAL\"),N17,\"\")))))))))","v":1},{"$f":"IF(AND(N23=\"ANUAL\",J23=\"MENSUAL\"),N17/12+E50,IF(AND(N23=\"ANUAL\",J23=\"TRIMESTRAL\"),N17/4+E50,IF(AND(N23=\"SEMESTRAL\",J23=\"MENSUAL\"),N17/6+E50,IF(AND(N23=\"SEMESTRAL\",J23=\"TRIMESTRAL\"),N17/2,IF(AND(N23=\"TRIMESTRAL\",J23=\"MENSUAL\"),N17/3+E50,IF(AND(N23=\"TRIMESTRAL\",J23=\"TRIMESTRAL\"),N17,IF(AND(N23=\"MENSUAL\",J23=\"MENSUAL\"),N17,\"\")))))))","v":""},{"$f":"IF(AND(N23=\"ANUAL\",J23=\"MENSUAL\"),N17/12+F50,IF(AND(N23=\"ANUAL\",J23=\"TRIMESTRAL\"),N17/4+F50,IF(AND(N23=\"SEMESTRAL\",J23=\"MENSUAL\"),N17/6+F50,IF(AND(N23=\"SEMESTRAL\",J23=\"TRIMESTRAL\"),N17/2+F50,IF(AND(N23=\"TRIMESTRAL\",J23=\"MENSUAL\"),N17/3,IF(AND(N23=\"TRIMESTRAL\",J23=\"TRIMESTRAL\"),N17,IF(AND(N23=\"MENSUAL\",J23=\"MENSUAL\"),N17,\"\")))))))","v":""},{"$f":"IF(AND($N$23=\"ANUAL\",$J$23=\"MENSUAL\"),$N$17/12+G50,IF(AND(N23=\"SEMESTRAL\",J23=\"MENSUAL\"),N17/6+G50,IF(AND(N23=\"TRIMESTRAL\",J23=\"MENSUAL\"),N17/3+G50,IF(AND(N23=\"MENSUAL\",J23=\"MENSUAL\"),N17,\"\"))))","v":""},{"$f":"IF(AND($N$23=\"ANUAL\",$J$23=\"MENSUAL\"),$N$17/12+H50,IF(AND(N23=\"SEMESTRAL\",J23=\"MENSUAL\"),N17/6+H50,IF(AND(N23=\"TRIMESTRAL\",J23=\"MENSUAL\"),N17/3+H50,IF(AND(N23=\"MENSUAL\",J23=\"MENSUAL\"),N17,\"\"))))","v":""},{"$f":"IF(AND($N$23=\"ANUAL\",$J$23=\"MENSUAL\"),$N$17/12+I50,IF(AND(N23=\"SEMESTRAL\",J23=\"MENSUAL\"),N17/6,IF(AND(N23=\"TRIMESTRAL\",J23=\"MENSUAL\"),N17/3,IF(AND(N23=\"MENSUAL\",J23=\"MENSUAL\"),N17,\"\"))))","v":""},{"$f":"IF(AND($N$23=\"ANUAL\",$J$23=\"MENSUAL\"),$N$17/12+J50,IF(AND(N23=\"SEMESTRAL\",J23=\"MENSUAL\"),N17/6+J50,IF(AND(N23=\"TRIMESTRAL\",J23=\"MENSUAL\"),N17/3+J50,IF(AND(N23=\"MENSUAL\",J23=\"MENSUAL\"),N17,\"\"))))","v":""},{"$f":"IF(AND($N$23=\"ANUAL\",$J$23=\"MENSUAL\"),$N$17/12+K50,IF(AND(N23=\"SEMESTRAL\",J23=\"MENSUAL\"),N17/6+K50,IF(AND(N23=\"TRIMESTRAL\",J23=\"MENSUAL\"),N17/3+K50,IF(AND(N23=\"MENSUAL\",J23=\"MENSUAL\"),N17,\"\"))))","v":""},{"$f":"IF(AND($N$23=\"ANUAL\",$J$23=\"MENSUAL\"),$N$17/12+L50,IF(AND(N23=\"SEMESTRAL\",J23=\"MENSUAL\"),N17/6+L50,IF(AND(N23=\"TRIMESTRAL\",J23=\"MENSUAL\"),N17/3,IF(AND(N23=\"MENSUAL\",J23=\"MENSUAL\"),N17,\"\"))))","v":""},{"$f":"IF(AND($N$23=\"ANUAL\",$J$23=\"MENSUAL\"),$N$17/12+M50,IF(AND(N23=\"SEMESTRAL\",J23=\"MENSUAL\"),N17/6+M50,IF(AND(N23=\"TRIMESTRAL\",J23=\"MENSUAL\"),N17/3+M50,IF(AND(N23=\"MENSUAL\",J23=\"MENSUAL\"),N17,\"\"))))","v":""},{"$f":"IF(AND($N$23=\"ANUAL\",$J$23=\"MENSUAL\"),$N$17/12+N50,IF(AND(N23=\"SEMESTRAL\",J23=\"MENSUAL\"),N17/6+N50,IF(AND(N23=\"TRIMESTRAL\",J23=\"MENSUAL\"),N17/3+N50,IF(AND(N23=\"MENSUAL\",J23=\"MENSUAL\"),N17,\"\"))))","v":""}]
[]
[null,null,"NIVEL DE SEGREGACIÓN *"]
[null,null,"UNIDAD SEGREGADA (Ej. Facultad, Programa Académico, Área)",null,null,null,"RESULTADO",null,null,null,"ANALISIS DE DATOS SEGREGADO"]
[null,null,"Sede Fusagasugá",null,null,null,0.72,null,null,null,"En sede  en el IIPA2024 se han adquirido un total de  562 elementos "]
[null,null,"Seccional Girardot",null,null,null,0,null,null,null,"Para el IIPA 2024 no se realizaron la Adquisición de elementos e insumos, toda vez que algunos procesos fueron llevados a cabo desde la sede Fusagasugá"]
[null,null,"Seccional Ubaté",null,null,null,0.22,null,null,null,"La Seccional en el IIPA2024 se han adquirido un total de 174 elementos "]
[null,null,"Extensión Chía",null,null,null,0.03,null,null,null,"La Extensión en el IIPA2024 se han adquirido un total de 20 elementos "]
[null,null,"Extensión Facatativá",null,null,null,0,null,null,null,"Para el IIPA 2024 No se realizaron la Adquisición de elementos e insumos, toda vez que se realizó el cumplimiento de la meta "]
[null,null,"Extensión Soacha",null,null,null,0.03,null,null,null,"La Extensión en el IIPA2024 se han adquirido un total de  26 elementos "]
[null,null,"Extensión Zipaquirá",null,null,null,0,null,null,null,"Para el IIPA 2024 No se realizaron la Adquisición de elementos e insumos"]
[]
[]
[]
[]
[]
[]
[]
[]
[]
[null,null,null,null,null,null,"Estratégico",null,null,"Eficacia"]
[null,null,null,null,null,null,"Misional",null,null,"Eficiencia"]
[null,null,null,null,null,null,"Apoyo",null,null,"Acreditación"]
[null,null,null,null,null,null,"Seguimiento, Medición, Análisis y Evaluación",null,null,"Positiva"]
[null,null,null,null,null,null,"Direccionamiento Estratégico",null,null,"Negativa"]
[null,null,null,null,null,null,"Planeación Institucional",null,null,"Por Unidad Regional"]
[null,null,null,null,null,null,"Proyectos Especiales y Relaciones Interinstitucionales",null,null,"Por Facultad"]
[null,null,null,null,null,null,"Sistemas Integrados",null,null,"Por Programa Académico"]
[null,null,null,null,null,null,"Autoevaluación y Acreditación",null,null,"Por área"]
[null,null,null,null,null,null,"Comunicaciones",null,null,"Por Laboratorio"]
[null,null,null,null,null,null,"Formación y Aprendizaje",null,null,"Otros"]
[null,null,null,null,null,null,"Ciencia, Tecnología e Innovación",null,null,"No Aplica"]
[null,null,null,null,null,null,"Interacción Social Universitaria"]
[null,null,null,null,null,null,"Bienestar Universitario"]
[null,null,null,null,null,null,"Admisiones y Registro"]
[null,null,null,null,null,null,"Graduados"]
[null,null,null,null,null,null,"Dialogando con el Mundo"]
[null,null,null,null,null,null,"Talento Humano"]
[null,null,null,null,null,null,"Jurídica"]
[null,null,null,null,null,null,"Financiera"]
[null,null,null,null,null,null,"Sistemas y Tecnología"]
[null,null,null,null,null,null,"Bienes y Servicios"]
[null,null,null,null,null,null,"Documental"]
[null,null,null,null,null,null,"Apoyo Académico"]
[null,null,null,null,null,null,"Control Interno"]
[null,null,null,null,null,null,"Control Disciplinario"]
[null,null,null,null,null,null,"Servicio de Atención al Ciudadano"]

{"sheet":"AAA-11 Inacti","index":5,"n_rows":91,"n_cols":15,"rows_kept":91,"cut":false,"hidden":true,"merged":[[53,2,53,5],[53,6,53,9],[53,10,53,14],[54,2,54,5],[54,6,54,9],[54,10,54,14],[51,2,51,5],[51,6,51,9],[51,10,51,14],[52,2,52,5],[52,6,52,9],[52,10,52,14],[49,2,49,5],[49,6,49,9],[49,10,49,14],[50,2,50,5],[50,6,50,9],[50,10,50,14],[48,2,48,5],[48,6,48,9],[48,10,48,14],[26,15,27,15],[27,9,27,14],[28,9,28,14],[29,9,34,14],[35,9,35,14],[36,9,36,14],[39,2,39,14],[46,2,46,14],[47,2,47,5],[47,6,47,9],[47,10,47,14],[22,13,23,14],[23,2,23,3],[23,4,23,6],[25,2,25,14],[26,2,37,8],[26,9,26,14],[37,9,37,14],[22,2,22,3],[22,4,22,6],[22,7,23,8],[22,9,23,10],[22,11,23,12],[19,2,21,3],[19,4,21,6],[19,7,21,8],[19,9,21,10],[19,11,19,14],[16,15,17,15],[17,2,18,3],[17,4,17,5],[17,6,17,10],[17,11,18,12],[17,13,18,14],[18,4,18,5],[18,6,18,10],[16,2,16,3],[16,4,16,6],[16,7,16,8],[16,9,16,10],[16,11,16,12],[16,13,16,14],[15,2,15,14],[8,2,8,14],[9,2,10,14],[11,2,11,3],[11,4,11,7],[11,8,11,9],[11,10,11,14],[12,2,12,3],[12,4,12,14],[13,2,13,3],[13,4,13,14],[14,2,14,14],[1,1,3,2],[4,2,7,3],[4,4,4,11],[4,12,4,14],[5,4,5,11],[5,12,5,14],[6,4,7,11],[6,12,6,14],[7,12,7,14]]}
[]
[null,"      REGRESAR"]
[]
[]
[null,null,null,null,"MACROPROCESO ESTRATÉGICO",null,null,null,null,null,null,null,"CÓDIGO: ESGr027"]
[null,null,null,null,"PROCESO GESTIÓN SISTEMAS INTEGRADOS",null,null,null,null,null,null,null,"VERSIÓN: 8"]
[null,null,null,null,"MATRIZ DE MEDICIÓN Y SEGUIMIENTO A LOS PROCESOS DE GESTIÓN",null,null,null,null,null,null,null,"VIGENCIA: 2023-07-28"]
[null,null,null,null,null,null,null,null,null,null,null,null,"PÁGINA: 6 de 8"]
[]
[null,null,"FICHA DE INDICADOR"]
[]
[null,null,"MACROPROCESO",null,"Apoyo",null,null,null,"NOMBRE DEL INDICADOR",null,"Recursos de apoyo - Usabilidad de laboratorios"]
[null,null,"PROCESO GESTIÓN",null,"Apoyo Académico"]
[null,null,"RESPONSABLE DE MEDICIÓN",null,"Jefe de la Unidad de Apoyo Académico"]
[]
[null,null,"1. COMPORTAMIENTO DE INDICADOR"]
[null,null,"CLASIFICACIÓN DE LA MEDICIÓN",null,3,null,null,"TIPO DE INDICADOR",null,"Acreditación",null,"META ANUAL",null,2]
[null,null,"FORMULA",null,"NUMERADOR",null,"Número de visitas a los laboratorios * 100",null,null,null,null,"UNIDAD DE MEDIDA",null,"N° de visitas a los laboratorios por estudiantes activos"]
[null,null,null,null,"DENOMINADOR",null,"Total de estudiantes activos para el uso del laboratorio "]
[null,null,"TENDENCIA",null,"Positiva",null,null,"NIVEL DE SEGREGACIÓN *",null,"Por Programa Académico",null,"ESCALA"]
[null,null,null,null,null,null,null,null,null,null,null,"Deficiente","Aceptable","Bueno","Excelente"]
[null,null,null,null,null,null,null,null,null,null,null,"0 - 0,9","1 - 1,4","1,5 - 2","≥ 2,1"]
[null,null,"ORIGEN DE DATOS NUMERADOR",null,"Aplicativo",null,null,"FRECUENCIA DE LA MEDICIÓN",null,"SEMESTRAL",null,"FRECUENCIA DE RESULTADO",null,"SEMESTRAL"]
[null,null,"ORIGEN DE DATOS DENOMINADOR",null,"Aplicativo"]
[]
[null,null,"RESULTADOS"]
[null,null,null,null,null,null,null,null,null,"ANÁLISIS DE DATOS"]
[]
[null,null,null,null,null,null,null,null,null,"ACCIÓN FORMULADA"]
[]
[]
[]
[]
[]
[]
[null,null,null,null,null,null,null,null,null,"RESPONSABLE "]
[null,null,null,null,null,null,null,null,null,{"$f":"E14","v":"Jefe de la Unidad de Apoyo Académico"}]
[]
[]
[null,null,"PERIODO DE EVALUACIÓN"]
[null,null,"MES",{"$f":"IF(J23=\"MENSUAL\",\"ENERO\",IF(J23=\"TRIMESTRAL\",\"MARZO\",IF(J23=\"SEMESTRAL\",\"JUNIO\",IF(J23=\"ANUAL\",YEAR(TODAY()),\"\"))))","v":"JUNIO"},{"$f":"IF(J23=\"MENSUAL\",\"FEBRERO\",IF(J23=\"TRIMESTRAL\",\"JUNIO\",IF(J23=\"SEMESTRAL\",\"DICIEMBRE\",\"\")))","v":"DICIEMBRE"},{"$f":"IF(J23=\"MENSUAL\",\"MARZO\",IF(J23=\"TRIMESTRAL\",\"SEPTIEMBRE\",\"\"))","v":""},{"$f":"IF(J23=\"MENSUAL\",\"ABRIL\",IF(J23=\"TRIMESTRAL\",\"DICIEMBRE\",\"\"))","v":""},{"$f":"IF(J23=\"MENSUAL\",\"MAYO\",\"\")","v":""},{"$f":"IF(J23=\"MENSUAL\",\"JUNIO\",\"\")","v":""},{"$f":"IF(J23=\"MENSUAL\",\"JULIO\",\"\")","v":""},{"$f":"IF(J23=\"MENSUAL\",\"AGOSTO\",\"\")","v":""},{"$f":"IF(J23=\"MENSUAL\",\"SEPTIEMBRE\",\"\")","v":""},{"$f":"IF(J23=\"MENSUAL\",\"OCTUBRE\",\"\")","v":""},{"$f":"IF(J23=\"MENSUAL\",\"NOVIEMBRE\",\"\")","v":""},{"$f":"IF(J23=\"MENSUAL\",\"DICIEMBRE\",\"\")","v":""}]
[null,null,{"$f":"G18","v":"Número de visitas a los laboratorios * 100"}]
[null,null,{"$f":"G19","v":"Total de estudiantes activos para el uso del laboratorio "}]
[null,null,"VALOR ",{"$f":"IFERROR(IF($E$17=1,D42/D43,IF($E$17=2,D42,IF($E$17=3,D42/D43,\"\"))),\"\")","v":""},{"$f":"IFERROR(IF($E$17=1,E42/E43,IF($E$17=2,E42,IF($E$17=3,E42/E43,\"\"))),\"\")","v":""},null,{"$f":"IFERROR(IF($E$17=1,G42/G43,IF($E$17=2,G42,\"\")),\"\")","v":""},"","","","","","","",""]
[null,null,"META PONDERADA",{"$f":"IF(AND(N23=\"ANUAL\",J23=\"MENSUAL\"),N17/12,IF(AND(N23=\"ANUAL\",J23=\"TRIMESTRAL\"),N17/4,IF(AND(N23=\"ANUAL\",J23=\"SEMESTRAL\"),N17/2,IF(AND(N23=\"ANUAL\",J23=\"ANUAL\"),N17,IF(AND(N23=\"SEMESTRAL\",J23=\"MENSUAL\"),N17/6,IF(AND(N23=\"SEMESTRAL\",J23=\"TRIMESTRAL\"),N17/2,IF(AND(N23=\"SEMESTRAL\",J23=\"SEMESTRAL\"),N17,IF(AND(N23=\"SEMESTRAL\",J23=\"ANUAL\"),\"REVISAR FRECUENCIAS\",IF(AND(N23=\"TRIMESTRAL\",J23=\"MENSUAL\"),N17/3,IF(AND(N23=\"TRIMESTRAL\",J23=\"TRIMESTRAL\"),N17,IF(AND(N23=\"TRIMESTRAL\",J23=\"SEMESTRAL\"),\"REVISAR FRECUENCIAS\",IF(AND(N23=\"TRIMESTRAL\",J23=\"ANUAL\"),\"REVISAR FRECUENCIAS\",IF(AND(N23=\"MENSUAL\",J23=\"MENSUAL\"),N17,IF(AND(N23=\"MENSUAL\",J23=\"TRIMESTRAL\"),\"REVISAR FRECUENCIAS\",IF(AND(N23=\"MENSUAL\",J23=\"SEMESTRAL\"),\"REVISAR FRECUENCIAS\",IF(AND(N23=\"MENSUAL\",J23=\"ANUAL\"),\"REVISAR FRECUENCIAS\",\"\"))))))))))))))))","v":2},{"$f":"IF(AND(N23=\"ANUAL\",J23=\"MENSUAL\"),N17/12+D45,IF(AND(N23=\"ANUAL\",J23=\"TRIMESTRAL\"),N17/4+D45,IF(AND(N23=\"ANUAL\",J23=\"SEMESTRAL\"),N17/2+D45,IF(AND(N23=\"SEMESTRAL\",J23=\"MENSUAL\"),N17/6+D45,IF(AND(N23=\"SEMESTRAL\",J23=\"TRIMESTRAL\"),N17/2+D45,IF(AND(N23=\"SEMESTRAL\",J23=\"SEMESTRAL\"),N17,IF(AND(N23=\"TRIMESTRAL\",J23=\"MENSUAL\"),N17/3+D45,IF(AND(N23=\"TRIMESTRAL\",J23=\"TRIMESTRAL\"),N17,IF(AND(N23=\"MENSUAL\",J23=\"MENSUAL\"),N17,\"\")))))))))","v":2},{"$f":"IF(AND(N23=\"ANUAL\",J23=\"MENSUAL\"),N17/12+E45,IF(AND(N23=\"ANUAL\",J23=\"TRIMESTRAL\"),N17/4+E45,IF(AND(N23=\"SEMESTRAL\",J23=\"MENSUAL\"),N17/6+E45,IF(AND(N23=\"SEMESTRAL\",J23=\"TRIMESTRAL\"),N17/2,IF(AND(N23=\"TRIMESTRAL\",J23=\"MENSUAL\"),N17/3+E45,IF(AND(N23=\"TRIMESTRAL\",J23=\"TRIMESTRAL\"),N17,IF(AND(N23=\"MENSUAL\",J23=\"MENSUAL\"),N17,\"\")))))))","v":""},{"$f":"IF(AND(N23=\"ANUAL\",J23=\"MENSUAL\"),N17/12+F45,IF(AND(N23=\"ANUAL\",J23=\"TRIMESTRAL\"),N17/4+F45,IF(AND(N23=\"SEMESTRAL\",J23=\"MENSUAL\"),N17/6+F45,IF(AND(N23=\"SEMESTRAL\",J23=\"TRIMESTRAL\"),N17/2+F45,IF(AND(N23=\"TRIMESTRAL\",J23=\"MENSUAL\"),N17/3,IF(AND(N23=\"TRIMESTRAL\",J23=\"TRIMESTRAL\"),N17,IF(AND(N23=\"MENSUAL\",J23=\"MENSUAL\"),N17,\"\")))))))","v":""},{"$f":"IF(AND($N$23=\"ANUAL\",$J$23=\"MENSUAL\"),$N$17/12+G45,IF(AND(N23=\"SEMESTRAL\",J23=\"MENSUAL\"),N17/6+G45,IF(AND(N23=\"TRIMESTRAL\",J23=\"MENSUAL\"),N17/3+G45,IF(AND(N23=\"MENSUAL\",J23=\"MENSUAL\"),N17,\"\"))))","v":""},{"$f":"IF(AND($N$23=\"ANUAL\",$J$23=\"MENSUAL\"),$N$17/12+H45,IF(AND(N23=\"SEMESTRAL\",J23=\"MENSUAL\"),N17/6+H45,IF(AND(N23=\"TRIMESTRAL\",J23=\"MENSUAL\"),N17/3+H45,IF(AND(N23=\"MENSUAL\",J23=\"MENSUAL\"),N17,\"\"))))","v":""},{"$f":"IF(AND($N$23=\"ANUAL\",$J$23=\"MENSUAL\"),$N$17/12+I45,IF(AND(N23=\"SEMESTRAL\",J23=\"MENSUAL\"),N17/6,IF(AND(N23=\"TRIMESTRAL\",J23=\"MENSUAL\"),N17/3,IF(AND(N23=\"MENSUAL\",J23=\"MENSUAL\"),N17,\"\"))))","v":""},{"$f":"IF(AND($N$23=\"ANUAL\",$J$23=\"MENSUAL\"),$N$17/12+J45,IF(AND(N23=\"SEMESTRAL\",J23=\"MENSUAL\"),N17/6+J45,IF(AND(N23=\"TRIMESTRAL\",J23=\"MENSUAL\"),N17/3+J45,IF(AND(N23=\"MENSUAL\",J23=\"MENSUAL\"),N17,\"\"))))","v":""},{"$f":"IF(AND($N$23=\"ANUAL\",$J$23=\"MENSUAL\"),$N$17/12+K45,IF(AND(N23=\"SEMESTRAL\",J23=\"MENSUAL\"),N17/6+K45,IF(AND(N23=\"TRIMESTRAL\",J23=\"MENSUAL\"),N17/3+K45,IF(AND(N23=\"MENSUAL\",J23=\"MENSUAL\"),N17,\"\"))))","v":""},{"$f":"IF(AND($N$23=\"ANUAL\",$J$23=\"MENSUAL\"),$N$17/12+L45,IF(AND(N23=\"SEMESTRAL\",J23=\"MENSUAL\"),N17/6+L45,IF(AND(N23=\"TRIMESTRAL\",J23=\"MENSUAL\"),N17/3,IF(AND(N23=\"MENSUAL\",J23=\"MENSUAL\"),N17,\"\"))))","v":""},{"$f":"IF(AND($N$23=\"ANUAL\",$J$23=\"MENSUAL\"),$N$17/12+M45,IF(AND(N23=\"SEMESTRAL\",J23=\"MENSUAL\"),N17/6+M45,IF(AND(N23=\"TRIMESTRAL\",J23=\"MENSUAL\"),N17/3+M45,IF(AND(N23=\"MENSUAL\",J23=\"MENSUAL\"),N17,\"\"))))","v":""},{"$f":"IF(AND($N$23=\"ANUAL\",$J$23=\"MENSUAL\"),$N$17/12+N45,IF(AND(N23=\"SEMESTRAL\",J23=\"MENSUAL\"),N17/6+N45,IF(AND(N23=\"TRIMESTRAL\",J23=\"MENSUAL\"),N17/3+N45,IF(AND(N23=\"MENSUAL\",J23=\"MENSUAL\"),N17,\"\"))))","v":""}]
[]
[null,null,"NIVEL DE SEGREGACIÓN *"]
[null,null,"UNIDAD SEGREGADA (Ej. Facultad, Programa Académico, Área)",null,null,null,"RESULTADO",null,null,null,"ANALISIS DE DATOS SEGREGADO"]
[]
[]
[]
[]
[]
[]
[]
[]
[]
[]
[]
[]
[]
[]
[]
[]
[null,null,null,null,null,null,"Estratégico",null,null,"Eficacia"]
[null,null,null,null,null,null,"Misional",null,null,"Eficiencia"]
[null,null,null,null,null,null,"Apoyo",null,null,"Acreditación"]
[null,null,null,null,null,null,"Seguimiento, Medición, Análisis y Evaluación",null,null,"Positiva"]
[null,null,null,null,null,null,"Direccionamiento Estratégico",null,null,"Negativa"]
[null,null,null,null,null,null,"Planeación Institucional",null,null,"Por Unidad Regional"]
[null,null,null,null,null,null,"Proyectos Especiales y Relaciones Interinstitucionales",null,null,"Por Facultad"]
[null,null,null,null,null,null,"Sistemas Integrados",null,null,"Por Programa Académico"]
[null,null,null,null,null,null,"Autoevaluación y Acreditación",null,null,"Por área"]
[null,null,null,null,null,null,"Comunicaciones",null,null,"Por Laboratorio"]
[null,null,null,null,null,null,"Formación y Aprendizaje",null,null,"Otros"]
[null,null,null,null,null,null,"Ciencia, Tecnología e Innovación",null,null,"No Aplica"]
[null,null,null,null,null,null,"Interacción Social Universitaria"]
[null,null,null,null,null,null,"Bienestar Universitario"]
[null,null,null,null,null,null,"Admisiones y Registro"]
[null,null,null,null,null,null,"Graduados"]
[null,null,null,null,null,null,"Dialogando con el Mundo"]
[null,null,null,null,null,null,"Talento Humano"]
[null,null,null,null,null,null,"Jurídica"]
[null,null,null,null,null,null,"Financiera"]
[null,null,null,null,null,null,"Sistemas y Tecnología"]
[null,null,null,null,null,null,"Bienes y Servicios"]
[null,null,null,null,null,null,"Documental"]
[null,null,null,null,null,null,"Apoyo Académico"]
[null,null,null,null,null,null,"Control Interno"]
[null,null,null,null,null,null,"Control Disciplinario"]
[null,null,null,null,null,null,"Servicio de Atención al Ciudadano"]

{"sheet":"AAA-12 Inacti","index":6,"n_rows":95,"n_cols":15,"rows_kept":95,"cut":false,"hidden":true,"merged":[[1,1,3,2],[4,2,7,3],[4,4,4,11],[4,12,4,14],[5,4,5,11],[5,12,5,14],[6,4,7,11],[6,12,6,14],[7,12,7,14],[8,2,8,14],[9,2,10,14],[11,2,11,3],[11,4,11,7],[11,8,11,9],[11,10,11,14],[16,13,16,14],[12,2,12,3],[12,4,12,14],[13,2,13,3],[13,4,13,14],[14,2,14,14],[15,2,15,14],[22,13,23,14],[16,15,17,15],[17,2,18,3],[17,4,18,10],[17,11,18,12],[17,13,18,14],[19,2,21,3],[19,4,21,6],[19,7,21,8],[19,9,21,10],[19,11,19,14],[16,2,16,3],[16,4,16,6],[16,7,16,8],[16,9,16,10],[16,11,16,12],[22,2,23,3],[22,4,23,6],[22,7,23,8],[22,9,23,10],[22,11,23,12],[26,15,27,15],[27,9,32,14],[33,9,33,14],[34,9,39,14],[40,9,40,14],[52,2,52,5],[52,6,52,9],[52,10,52,14],[25,2,25,14],[26,2,42,8],[26,9,26,14],[41,9,41,14],[42,9,42,14],[44,2,44,14],[50,2,50,14],[51,2,51,5],[51,6,51,9],[51,10,51,14],[53,2,53,5],[53,6,53,9],[53,10,53,14],[54,2,54,5],[54,6,54,9],[54,10,54,14],[55,2,55,5],[55,6,55,9],[55,10,55,14],[56,2,56,5],[56,6,56,9],[56,10,56,14],[57,2,57,5],[57,6,57,9],[57,10,57,14],[58,2,58,5],[58,6,58,9],[58,10,58,14]]}
[]
[null,"      REGRESAR"]
[]
[]
[null,null,null,null,"MACROPROCESO ESTRATÉGICO",null,null,null,null,null,null,null,"CÓDIGO: ESGr027"]
[null,null,null,null,"PROCESO GESTIÓN SISTEMAS INTEGRADOS",null,null,null,null,null,null,null,"VERSIÓN: 8"]
[null,null,null,null,"MATRIZ DE MEDICIÓN Y SEGUIMIENTO A LOS PROCESOS DE GESTIÓN",null,null,null,null,null,null,null,"VIGENCIA: 2023-07-28"]
[null,null,null,null,null,null,null,null,null,null,null,null,"PÁGINA: 7 de 8"]
[]
[null,null,"FICHA DE INDICADOR"]
[]
[null,null,"MACROPROCESO",null,"Apoyo",null,null,null,"NOMBRE DEL INDICADOR",null,"Usabilidad de recursos bibliográficos, (bases de datos, libros impresos y digitales)  "]
[null,null,"PROCESO GESTIÓN",null,"Apoyo Académico"]
[null,null,"RESPONSABLE DE MEDICIÓN",null,"Jefe de la Unidad de Apoyo Académico"]
[]
[null,null,"1. COMPORTAMIENTO DE INDICADOR"]
[null,null,"CLASIFICACIÓN DE LA MEDICIÓN",null,2,null,null,"TIPO DE INDICADOR",null,"Acreditación",null,"META ANUAL",null,70000]
[null,null,"FORMULA",null,"Número de consultas en relación con los recursos bibliográficos de la Ucundinamarca",null,null,null,null,null,null,"UNIDAD DE MEDIDA",null,"Número Absoluto"]
[]
[null,null,"TENDENCIA",null,"Positiva",null,null,"NIVEL DE SEGREGACIÓN *",null,"Por Programa Académico",null,"ESCALA"]
[null,null,null,null,null,null,null,null,null,null,null,"Deficiente","Aceptable","Bueno","Excelente"]
[null,null,null,null,null,null,null,null,null,null,null,"0 - 49999","50000-64999","65000 - 70000"," ≥ 70001"]
[null,null,"ORIGEN DE DATOS",null,"Bibliocifras",null,null,"FRECUENCIA DE LA MEDICIÓN",null,"SEMESTRAL",null,"FRECUENCIA DE RESULTADO",null,"SEMESTRAL"]
[]
[]
[null,null,"RESULTADOS"]
[null,null,null,null,null,null,null,null,null,"ANÁLISIS DE DATOS"]
[]
[]
[]
[]
[]
[]
[null,null,null,null,null,null,null,null,null,"ACCIÓN FORMULADA"]
[]
[]
[]
[]
[]
[]
[null,null,null,null,null,null,null,null,null,"RESPONSABLE "]
[null,null,null,null,null,null,null,null,null,{"$f":"E14","v":"Jefe de la Unidad de Apoyo Académico"}]
[]
[]
[null,null,"PERIODO DE EVALUACIÓN"]
[null,null,"MES",{"$f":"IF(J23=\"MENSUAL\",\"ENERO\",IF(J23=\"TRIMESTRAL\",\"MARZO\",IF(J23=\"SEMESTRAL\",\"JUNIO\",IF(J23=\"ANUAL\",YEAR(TODAY()),\"\"))))","v":"JUNIO"},{"$f":"IF(J23=\"MENSUAL\",\"FEBRERO\",IF(J23=\"TRIMESTRAL\",\"JUNIO\",IF(J23=\"SEMESTRAL\",\"DICIEMBRE\",\"\")))","v":"DICIEMBRE"},{"$f":"IF(J23=\"MENSUAL\",\"MARZO\",IF(J23=\"TRIMESTRAL\",\"SEPTIEMBRE\",\"\"))","v":""},{"$f":"IF(J23=\"MENSUAL\",\"ABRIL\",IF(J23=\"TRIMESTRAL\",\"DICIEMBRE\",\"\"))","v":""},{"$f":"IF(J23=\"MENSUAL\",\"MAYO\",\"\")","v":""},{"$f":"IF(J23=\"MENSUAL\",\"JUNIO\",\"\")","v":""},{"$f":"IF(J23=\"MENSUAL\",\"JULIO\",\"\")","v":""},{"$f":"IF(J23=\"MENSUAL\",\"AGOSTO\",\"\")","v":""},{"$f":"IF(J23=\"MENSUAL\",\"SEPTIEMBRE\",\"\")","v":""},{"$f":"IF(J23=\"MENSUAL\",\"OCTUBRE\",\"\")","v":""},{"$f":"IF(J23=\"MENSUAL\",\"NOVIEMBRE\",\"\")","v":""},{"$f":"IF(J23=\"MENSUAL\",\"DICIEMBRE\",\"\")","v":""}]
[null,null,{"$f":"E18","v":"Número de consultas en relación con los recursos bibliográficos de la Ucundinamarca"}]
[null,null,"VALOR ",{"$f":"IFERROR(IF($E$17=1,D47,IF($E$17=2,D47,IF($E$17=3,D47,\"\"))),\"\")","v":0},{"$f":"IFERROR(IF($E$17=1,E47,IF($E$17=2,E47,IF($E$17=3,E47,\"\"))),\"\")","v":0},{"$f":"+F47","v":0},{"$f":"+G47","v":0},{"$f":"IFERROR(IF($E$17=1,#REF!/H47,IF($E$17=2,#REF!,\"\")),\"\")","v":""},{"$f":"IFERROR(IF($E$17=1,#REF!/I47,IF($E$17=2,#REF!,\"\")),\"\")","v":""},{"$f":"IFERROR(IF($E$17=1,#REF!/J47,IF($E$17=2,#REF!,\"\")),\"\")","v":""},{"$f":"IFERROR(IF($E$17=1,#REF!/K47,IF($E$17=2,#REF!,\"\")),\"\")","v":""},{"$f":"IFERROR(IF($E$17=1,#REF!/L47,IF($E$17=2,#REF!,\"\")),\"\")","v":""},{"$f":"IFERROR(IF($E$17=1,#REF!/M47,IF($E$17=2,#REF!,\"\")),\"\")","v":""},{"$f":"IFERROR(IF($E$17=1,#REF!/N47,IF($E$17=2,#REF!,\"\")),\"\")","v":""},{"$f":"IFERROR(IF($E$17=1,#REF!/O47,IF($E$17=2,#REF!,\"\")),\"\")","v":""}]
[null,null,"META PONDERADA",{"$f":"IF(AND(N23=\"SEMESTRAL\",J23=\"MENSUAL\"),N17/12,IF(AND(N23=\"ANUAL\",J23=\"TRIMESTRAL\"),N17/4,IF(AND(N23=\"ANUAL\",J23=\"SEMESTRAL\"),N17/2,IF(AND(N23=\"ANUAL\",J23=\"ANUAL\"),N17,IF(AND(N23=\"SEMESTRAL\",J23=\"MENSUAL\"),N17/6,IF(AND(N23=\"SEMESTRAL\",J23=\"TRIMESTRAL\"),N17/2,IF(AND(N23=\"SEMESTRAL\",J23=\"SEMESTRAL\"),N17,IF(AND(N23=\"SEMESTRAL\",J23=\"ANUAL\"),\"REVISAR FRECUENCIAS\",IF(AND(N23=\"TRIMESTRAL\",J23=\"MENSUAL\"),N17/3,IF(AND(N23=\"TRIMESTRAL\",J23=\"TRIMESTRAL\"),N17,IF(AND(N23=\"TRIMESTRAL\",J23=\"SEMESTRAL\"),\"REVISAR FRECUENCIAS\",IF(AND(N23=\"TRIMESTRAL\",J23=\"ANUAL\"),\"REVISAR FRECUENCIAS\",IF(AND(N23=\"MENSUAL\",J23=\"MENSUAL\"),N17,IF(AND(N23=\"MENSUAL\",J23=\"TRIMESTRAL\"),\"REVISAR FRECUENCIAS\",IF(AND(N23=\"MENSUAL\",J23=\"SEMESTRAL\"),\"REVISAR FRECUENCIAS\",IF(AND(N23=\"MENSUAL\",J23=\"ANUAL\"),\"REVISAR FRECUENCIAS\",\"\"))))))))))))))))","v":70000},{"$f":"IF(AND(N23=\"ANUAL\",J23=\"MENSUAL\"),N17/12+D48,IF(AND(N23=\"ANUAL\",J23=\"TRIMESTRAL\"),N17/4+D48,IF(AND(N23=\"ANUAL\",J23=\"SEMESTRAL\"),N17/2+D48,IF(AND(N23=\"SEMESTRAL\",J23=\"MENSUAL\"),N17/6+D48,IF(AND(N23=\"SEMESTRAL\",J23=\"TRIMESTRAL\"),N17/2+D48,IF(AND(N23=\"SEMESTRAL\",J23=\"SEMESTRAL\"),N17,IF(AND(N23=\"TRIMESTRAL\",J23=\"MENSUAL\"),N17/3+D48,IF(AND(N23=\"TRIMESTRAL\",J23=\"TRIMESTRAL\"),N17,IF(AND(N23=\"MENSUAL\",J23=\"MENSUAL\"),N17,\"\")))))))))","v":70000},null,{"$f":"IF(AND(Q24=\"ANUAL\",M24=\"MENSUAL\"),Q18/12,IF(AND(Q24=\"ANUAL\",M24=\"TRIMESTRAL\"),Q18/4,IF(AND(Q24=\"ANUAL\",M24=\"SEMESTRAL\"),Q18/2,IF(AND(Q24=\"ANUAL\",M24=\"ANUAL\"),Q18,IF(AND(Q24=\"SEMESTRAL\",M24=\"MENSUAL\"),Q18/6,IF(AND(Q24=\"SEMESTRAL\",M24=\"TRIMESTRAL\"),Q18/2,IF(AND(Q24=\"SEMESTRAL\",M24=\"SEMESTRAL\"),Q18,IF(AND(Q24=\"SEMESTRAL\",M24=\"ANUAL\"),\"REVISAR FRECUENCIAS\",IF(AND(Q24=\"TRIMESTRAL\",M24=\"MENSUAL\"),Q18/3,IF(AND(Q24=\"TRIMESTRAL\",M24=\"TRIMESTRAL\"),Q18,IF(AND(Q24=\"TRIMESTRAL\",M24=\"SEMESTRAL\"),\"REVISAR FRECUENCIAS\",IF(AND(Q24=\"TRIMESTRAL\",M24=\"ANUAL\"),\"REVISAR FRECUENCIAS\",IF(AND(Q24=\"MENSUAL\",M24=\"MENSUAL\"),Q18,IF(AND(Q24=\"MENSUAL\",M24=\"TRIMESTRAL\"),\"REVISAR FRECUENCIAS\",IF(AND(Q24=\"MENSUAL\",M24=\"SEMESTRAL\"),\"REVISAR FRECUENCIAS\",IF(AND(Q24=\"MENSUAL\",M24=\"ANUAL\"),\"REVISAR FRECUENCIAS\",\"\"))))))))))))))))","v":""},{"$f":"IF(AND($N$23=\"ANUAL\",$J$23=\"MENSUAL\"),$N$17/12+G49,IF(AND(N23=\"SEMESTRAL\",J23=\"MENSUAL\"),N17/6+G49,IF(AND(N23=\"TRIMESTRAL\",J23=\"MENSUAL\"),N17/3+G49,IF(AND(N23=\"MENSUAL\",J23=\"MENSUAL\"),N17,\"\"))))","v":""},{"$f":"IF(AND($N$23=\"ANUAL\",$J$23=\"MENSUAL\"),$N$17/12+H49,IF(AND(N23=\"SEMESTRAL\",J23=\"MENSUAL\"),N17/6+H49,IF(AND(N23=\"TRIMESTRAL\",J23=\"MENSUAL\"),N17/3+H49,IF(AND(N23=\"MENSUAL\",J23=\"MENSUAL\"),N17,\"\"))))","v":""},{"$f":"IF(AND($N$23=\"ANUAL\",$J$23=\"MENSUAL\"),$N$17/12+I49,IF(AND(N23=\"SEMESTRAL\",J23=\"MENSUAL\"),N17/6,IF(AND(N23=\"TRIMESTRAL\",J23=\"MENSUAL\"),N17/3,IF(AND(N23=\"MENSUAL\",J23=\"MENSUAL\"),N17,\"\"))))","v":""},{"$f":"IF(AND($N$23=\"ANUAL\",$J$23=\"MENSUAL\"),$N$17/12+J49,IF(AND(N23=\"SEMESTRAL\",J23=\"MENSUAL\"),N17/6+J49,IF(AND(N23=\"TRIMESTRAL\",J23=\"MENSUAL\"),N17/3+J49,IF(AND(N23=\"MENSUAL\",J23=\"MENSUAL\"),N17,\"\"))))","v":""},{"$f":"IF(AND($N$23=\"ANUAL\",$J$23=\"MENSUAL\"),$N$17/12+K49,IF(AND(N23=\"SEMESTRAL\",J23=\"MENSUAL\"),N17/6+K49,IF(AND(N23=\"TRIMESTRAL\",J23=\"MENSUAL\"),N17/3+K49,IF(AND(N23=\"MENSUAL\",J23=\"MENSUAL\"),N17,\"\"))))","v":""},{"$f":"IF(AND($N$23=\"ANUAL\",$J$23=\"MENSUAL\"),$N$17/12+L49,IF(AND(N23=\"SEMESTRAL\",J23=\"MENSUAL\"),N17/6+L49,IF(AND(N23=\"TRIMESTRAL\",J23=\"MENSUAL\"),N17/3,IF(AND(N23=\"MENSUAL\",J23=\"MENSUAL\"),N17,\"\"))))","v":""},{"$f":"IF(AND($N$23=\"ANUAL\",$J$23=\"MENSUAL\"),$N$17/12+M49,IF(AND(N23=\"SEMESTRAL\",J23=\"MENSUAL\"),N17/6+M49,IF(AND(N23=\"TRIMESTRAL\",J23=\"MENSUAL\"),N17/3+M49,IF(AND(N23=\"MENSUAL\",J23=\"MENSUAL\"),N17,\"\"))))","v":""},{"$f":"IF(AND($N$23=\"ANUAL\",$J$23=\"MENSUAL\"),$N$17/12+N49,IF(AND(N23=\"SEMESTRAL\",J23=\"MENSUAL\"),N17/6+N49,IF(AND(N23=\"TRIMESTRAL\",J23=\"MENSUAL\"),N17/3+N49,IF(AND(N23=\"MENSUAL\",J23=\"MENSUAL\"),N17,\"\"))))","v":""}]
[]
[null,null,"NIVEL DE SEGREGACIÓN *"]
[null,null,"UNIDAD SEGREGADA (Ej. Facultad, Programa Académico, Área)",null,null,null,"RESULTADO",null,null,null,"ANALISIS DE DATOS SEGREGADO"]
[]
[]
[]
[]
[]
[]
[]
[]
[]
[]
[]
[]
[]
[]
[]
[]
[null,null,null,null,null,null,"Estratégico",null,null,"Eficacia"]
[null,null,null,null,null,null,"Misional",null,null,"Eficiencia"]
[null,null,null,null,null,null,"Apoyo",null,null,"Acreditación"]
[null,null,null,null,null,null,"Seguimiento, Medición, Análisis y Evaluación",null,null,"Positiva"]
[null,null,null,null,null,null,"Direccionamiento Estratégico",null,null,"Negativa"]
[null,null,null,null,null,null,"Planeación Institucional",null,null,"Por Unidad Regional"]
[null,null,null,null,null,null,"Proyectos Especiales y Relaciones Interinstitucionales",null,null,"Por Facultad"]
[null,null,null,null,null,null,"Sistemas Integrados",null,null,"Por Programa Académico"]
[null,null,null,null,null,null,"Autoevaluación y Acreditación",null,null,"Por área"]
[null,null,null,null,null,null,"Comunicaciones",null,null,"Por Laboratorio"]
[null,null,null,null,null,null,"Formación y Aprendizaje",null,null,"Otros"]
[null,null,null,null,null,null,"Ciencia, Tecnología e Innovación",null,null,"No Aplica"]
[null,null,null,null,null,null,"Interacción Social Universitaria"]
[null,null,null,null,null,null,"Bienestar Universitario"]
[null,null,null,null,null,null,"Admisiones y Registro"]
[null,null,null,null,null,null,"Graduados"]
[null,null,null,null,null,null,"Dialogando con el Mundo"]
[null,null,null,null,null,null,"Talento Humano"]
[null,null,null,null,null,null,"Jurídica"]
[null,null,null,null,null,null,"Financiera"]
[null,null,null,null,null,null,"Sistemas y Tecnología"]
[null,null,null,null,null,null,"Bienes y Servicios"]
[null,null,null,null,null,null,"Documental"]
[null,null,null,null,null,null,"Apoyo Académico"]
[null,null,null,null,null,null,"Control Interno"]
[null,null,null,null,null,null,"Control Disciplinario"]
[null,null,null,null,null,null,"Servicio de Atención al Ciudadano"]

{"sheet":"ACTUALIZACIONES","index":7,"n_rows":29,"n_cols":5,"rows_kept":29,"cut":false,"hidden":false,"merged":[[1,2,1,3],[1,1,4,1],[25,1,25,4],[28,1,28,4],[6,1,6,4],[3,2,4,3],[2,2,2,3],[11,1,12,1],[11,2,12,2],[11,3,12,3],[11,4,12,4]]}
[]
[null,null,"MACROPROCESO ESTRATÉGICO",null,"CÓDIGO: ESGr027"]
[null,null,"PROCESO GESTIÓN SISTEMAS INTEGRADOS - CALIDAD",null,"VERSIÓN: 8"]
[null,null,"MATRIZ DE MEDICIÓN Y SEGUIMIENTO A LOS PROCESOS DE GESTIÓN",null,"VIGENCIA: 2023-07-28"]
[null,null,null,null,"PÁGINA: 8 de 8"]
[]
[null,"CONTROL DE ACTUALIZACIONES"]
[null,"FECHA","DESCRIPCIÓN DE LA ACTUALIZACIÓN","RESPONSABLE","CARGO"]
[null,"2022-06-30","Se realizó el ajuste en la estructura del indicador AAA-2 Calibración de equipo y elementos educativos de investigación, para que la frecuencia de medición se realice de manera semestral","María de los Ángeles Franco Ortiz","Jefe de Apoyo Académico"]
[null,"2023-03-15","AAA-1 Se ajusta dentro de la formula el denominador \"Número total de licencias adquiridas\"\nAAA-5 Se ajusta el denominador de la formula \" Total de Elementos Educativos que Requieren Mantenimiento de acuerdo a Priorización\".\nAAA-6 Dado el comportamiento del indicador el proceso lo inactiva para la vigencia 2023.\nAAA-9 Se ajusta la formula del indicador Elementos educativos adquiridos para la academia*100 / Total de elementos educativos priorizados requeridos por la academia (solicitudes vigencia anterior).","María de los Ángeles Franco Ortiz","Jefe de Apoyo Académico"]
[null,"2023-07-10","De conformidad con la decisión tomada en sesión extraordinaria del Comité SAC, del 04 de julio de 2023, \"Los miembros del Comité SAC aprobaron por unanimidad, transferir del proceso Formación y Aprendizaje al proceso de Apoyo Académico los indicadores:  MFA-18 - Recursos de apoyo (Usabilidad de laboratorios) y MFA-19 - Usabilidad de recursos bibliográficos (bases de datos, libros impresos y digitales).\" Quedando identificados como lo tenía el proceso, el pasado 25/05/2021, indicador AAA-11 e AAA-12 respectivamente. La medición se llevará a partir del I semestre de 2023.","María de los Ángeles Franco Ortiz","Jefe de Apoyo Académico"]
[null,"2024-02-19","AAA-1 Al ser un indicador de Acreditación es necesario seguirlo midiendo, a pesar de los buenos resultados obtenidos en la vigencia anterior y también al no poder aumentar la meta. Es importante seguir con la medición del indicador al ser una actividad crítica para el proceso.\nAAA-2 Se ajusta en la formula el denominador, quedando de la siguiente manera: Total equipos validados por la Unidad de Apoyo Académico, de acuerdo a lo reportado por la Dirección de Investigación y con presupuesto asignado. Es importante seguir con la medición del indicador al ser una actividad crítica para el proceso.\nAAA-5 Se incluye la Segregación para este indicador a Unidad Regional, al ser responsabilidad también de seccionales y extensiones el mantenimiento de los Elementos Educativos asignados. Se sugiere al proceso realizar las socializaciones de la metodología y los lineamientos a seccionales y extensiones para la medición de este indicador. Al igual que seguir con la priorización de los mantenimientos a realizar, para no afectar el resultado de la medición. \nAAA-11 Recursos de apoyo - Usabilidad de laboratorios, durante el 2023 cumplió la meta establecida, sin embargo se inactiva por presentarse duplicidad en la medición, al realizarse también en el Plan de Acción con el indicador de \"Usabilidad de Espacios Académicos\" en los cuales están inmersos los laboratorios.\nAAA-12 Usabilidad de recursos bibliográficos, (bases de datos, libros impresos y digitales), durante el 2023 cumplió la meta establecida, sin embargo se inactiva por presentarse duplicidad en la medición, al realizarse también en el Plan de Acción con los indicadores: Incrementar en un 25% el alcance a la comunidad universitaria de los recursos y servicios de formación y asesoría en todas las unidades regionales, Ejecución 100% de los recursos asignados al CGCA, Alcanzar un 90% de percepción favorable en la atención y pertinencia de los recursos bibliográficos y Implementar y valorar una (1) experiencia cultural por unidad regional que permita aumentar en un 20% el número de usuarios que consultan recursos bibliográficos.  En el cual se puede evidenciar que estan inmersos la usabilidad de los recursos bibliográficos.    ","María de los Ángeles Franco Ortiz","Jefe de Apoyo Académico"]
[]
[]
[]
[]
[]
[]
[]
[]
[]
[]
[]
[]
[]
[null,"Diagonal 18 No. 20-29 Fusagasugá – Cundinamarca\nTeléfono (601)  8281483 Línea Gratuita 018000180414\nwww.ucundinamarca.edu.co   E-mail:  info@ucundinamarca.edu.co\nNIT: 890.680.062-2                                                                             "]
[]
[]
[null,"Documento controlado por el Sistema de Gestión de la Calidad\nAsegúrese que corresponde a la última versión consultando el Portal Institucional"]

{"sheet":"ITEM","index":8,"n_rows":4,"n_cols":3,"rows_kept":4,"cut":false,"hidden":true,"merged":[]}
["MENSUAL",null,"NÚMERO"]
["TRIMESTRAL",null,"PORCENTAJE"]
["SEMESTRAL"]
["ANUAL"]